Cogmind - Beta 11.1 @@@ ROGUE MODE // 2022.07.03 @ 18:04:25 Player: Pogmind Result: Destroyed by G-67 Veteran with Plasma Rifle Performance ------------- Evolutions (6) 3000 Regions Visited (30) 6000 Robots Destroyed (410) 2050 Value Destroyed (16306) 16306 Prototype IDs (265) 5300 Alien Tech Used (3) 600 Bonus (13987) 13987 TOTAL SCORE: 47243 Bonus ------- High Alert Combat Kills 573 Follower Combat Kills 3148 Entered Garrisons 200 Used RIF Installer 500 Aligned with FarCom 300 Met Data Miner 300 Used Data Conduit 3000 Triggered Deep Caves Wall 500 Exposed GOLEM Chamber 500 Met Zhirov 300 MAIN.C Attacked Warlord 500 Warlord Defense Kills 5128 Pursued by Intercept 500 Friendly Fire -1462 Cogmind --------- Core Integrity 0/1150 Matter 280/300 Energy 80/100 System Corruption 5% Temperature Cool (12) Movement Core (50) Location -4/Warlord Parts ------- > --- POWER (2) -------- (None) > --- PROPULSION (3) --- (None) > --- UTILITY (12) ----- (None) > --- WEAPON (3) ------- (None) > --- INVENTORY (5) ---- Assault Drone Bay (2/2) GOLEM Unit Peak State ------------ > --- POWER ------------ Assembled Flux Generator > --- PROPULSION ------- Zionite Composite Leg I Assembled Alloy Leg Assembled Alloy Leg > --- UTILITY ---------- Assembled Nanovents Assembled Nanovents Assembled Nanovents Humpback Assembled Biocell Array Makeshift Sensor Array Advanced Signal Interpreter Assembled Combat Suite Assembled Alloy Armor GOLEM Unit > --- WEAPON ----------- Assembled Focal Cannon Assembled Focal Cannon Assembled Focal Cannon > --- INVENTORY -------- Zionite Light DM Reactor Zionite Composite Leg I Experimental Heat Sink Huge Storage Unit Zionite Biocell Advanced Terrain Scanner Surveybot 24 Chip Improved Armor Integrity Analyzer Precision Matter Filter Energy Filter Improved Weapon Cycler Advanced Transmission Jammer Zionite Weapon Casing Zionite Weapon Casing Advanced Hacking Suite Deep Network Scanner Quantum Router Authchip [Device] Authchip [Device] System Purifier Long-range Tractor Beam Improved Trap Extractor Mapping Drone Bay Supersonic Drone Bay GOLEM Unit GOLEM Unit GOLEM Unit Transdimensional Reconstructor Heavy Missile Launcher Improved Remote Datajack Improved Plasma Cutter Makeshift Hammer [Rating: 175] Favorites ----------- Power Assembled Flux Generator Engine Angular Momentum Engine Power Core Fission Core Reactor Assembled Flux Generator Propulsion Light Treads Treads Light Treads Leg Assembled Alloy Leg Wheel Armored Huge Wheel Hover Unit Zionite Glidesys I Flight Unit Improved Cesium-ion Thruster Utility Huge Storage Unit Device Combat Drone Bay Storage Huge Storage Unit Processor Advanced Signal Interpreter Hackware Hacking Suite Protection Assembled Alloy Armor Weapon Assembled Focal Cannon Energy Gun Spread Laser Energy Cannon Assembled Focal Cannon Ballistic Gun Assault Rifle Ballistic Cannon Light Cannon Launcher Heavy Missile Launcher Special Weapon Plasma Cutter Impact Weapon Makeshift Hammer Slashing Weapon Makeshift Axe Piercing Weapon Makeshift Spear Special Melee Weapon Improved Datajack Build | -11 -10 -10 -9 -9 -9 -8 -8 -8 -7 -7 -7 -7 -7 -7 -6 -6 -6 -6 -6 -6 -5 -5 -5 -5 -5 -4 -4 -4 -4 -4 ------- Run | Scr Mat Min Mat Min Exi Min Mat Gar Fac Was Fac Low Low Dat Pro Fac Low Low Zio Dee Pro Fac Upp Upp Zhi Pro Fac Upp Upp War Slots Evolved 12 | . . . 2 . . . 2 . 2 . . . . . . 2 . . . . . 2 . . . . 2 . . . Power 1 | . . . . . . . . . . . . . . . . 1 . . . . . . . . . . . . . . Propulsion 1 | . . . . . . . . . . . . . . . . 1 . . . . . . . . . . . . . . Utility 9 | . . . 2 . . . 2 . 2 . . . . . . . . . . . . 1 . . . . 2 . . . Weapon 1 | . . . . . . . . . . . . . . . . . . . . . . 1 . . . . . . . . Parts Attached 773 | 7 8 2 33 12 54 2 66 50 24 5 81 10 14 27 29 35 23 10 34 56 10 10 25 11 4 7 28 25 27 44 Power 48 | 1 . . 1 1 6 . 4 10 4 . 2 . . 1 4 2 3 2 4 2 . . . . . . . . . 1 Engine 18 | 1 . . . . 2 . 1 5 2 . 2 . . . 1 1 1 1 1 . . . . . . . . . . . Core 20 | . . . 1 1 3 . 3 1 2 . . . . . 2 1 2 1 2 1 . . . . . . . . . . Reactor 10 | . . . . . 1 . . 4 . . . . . 1 1 . . . 1 1 . . . . . . . . . 1 Propulsion 90 | 2 . . 6 2 6 . 9 8 2 . 16 . 3 6 6 4 2 . 5 6 4 . . . . . . 2 . 1 Treads 45 | 2 . . 6 2 5 . 7 3 . . 4 . 2 5 1 . 1 . 4 2 1 . . . . . . . . . Leg 18 | . . . . . 1 . 2 . . . . . . . 3 3 1 . 1 2 2 . . . . . . 2 . 1 Wheel 25 | . . . . . . . . 5 2 . 11 . 1 1 2 1 . . . 1 1 . . . . . . . . . Hover 1 | . . . . . . . . . . . . . . . . . . . . 1 . . . . . . . . . . Flight 1 | . . . . . . . . . . . 1 . . . . . . . . . . . . . . . . . . . Utility 406 | 2 4 . 14 7 25 . 23 13 12 4 35 6 2 12 13 18 10 5 14 35 5 7 17 8 2 4 28 21 22 38 Device 262 | 1 . . 4 2 7 . 15 6 4 2 23 4 2 7 10 9 6 5 11 16 5 4 13 5 1 4 22 21 18 35 Storage 33 | 1 1 . . 1 4 . 2 1 1 . . . . 2 1 . . . . 4 . 2 3 3 1 . 1 . 3 2 Processor 15 | . 1 . 1 . . . 3 4 1 . . . . 1 . 1 . . 1 1 . . . . . . 1 . . . Hackware 20 | . . . . . 5 . . 2 1 1 1 . . . 1 4 . . . . . 1 . . . . 4 . . . Protection 76 | . 2 . 9 4 9 . 3 . 5 1 11 2 . 2 1 4 4 . 2 14 . . 1 . . . . . 1 1 Artifact . | . . . . . . . . . . . . . . . . . . . . . . . . . . . . . . . Weapon 229 | 2 4 2 12 2 17 2 30 19 6 1 28 4 9 8 6 11 8 3 11 13 1 3 8 3 2 3 . 2 5 4 Energy Gun 70 | . . . 4 1 3 1 11 5 3 . 11 2 4 5 . 6 1 . 2 10 . . . . . . . . . 1 Energy Cannon 31 | . 1 . . . 2 . 10 4 . . 7 . . 1 . 1 4 1 . . . . . . . . . . . . Ballistic Gun 8 | 2 . . . . 3 . 2 1 . . . . . . . . . . . . . . . . . . . . . . Ballistic Cannon 7 | . 3 1 3 . . . . . . . . . . . . . . . . . . . . . . . . . . . Launcher 32 | . . 1 3 1 2 1 3 2 . . 2 . 3 . 1 . 1 . 3 . . 1 2 . 1 . . 1 3 1 Special Weapon 22 | . . . . . 1 . 1 . . 1 . . . . 1 . 1 . 1 2 1 . 4 3 1 2 . 1 1 1 Impact Weapon 20 | . . . . . . . 1 2 2 . 1 . . 1 1 4 . . . 1 . 2 2 . . 1 . . 1 1 Slashing Weapon 31 | . . . 2 . 6 . 2 3 . . 7 2 2 . . . 1 2 4 . . . . . . . . . . . Piercing Weapon 5 | . . . . . . . . . . . . . . 1 3 . . . 1 . . . . . . . . . . . Special Melee Weapon 3 | . . . . . . . . 2 1 . . . . . . . . . . . . . . . . . . . . . Unidentified Prototypes 31 | . . . 1 1 8 . 3 1 . 1 3 1 . . . . 1 . . 9 . . . . 1 . . . . 1 Corrupted Parts 11 | . . . . . . . . . . . . . . 1 7 . . . 3 . . . . . . . . . . . System Corruption 53 | . . . . . . . . . . . . . . 9 31 . . . 13 . . . . . . . . . . . Parts Lost 91 | . 1 . 7 1 4 . 13 13 2 . 13 . . 5 3 2 3 . 3 4 . . . . . . . . . 17 Power 13 | . . . . 1 . . 1 4 . . . . . 1 1 . 1 . 2 . . . . . . . . . . 2 Propulsion 25 | . . . 4 . 2 . 3 3 2 . 6 . . 1 . 1 . . . . . . . . . . . . . 3 Utility 36 | . . . 2 . 2 . 8 4 . . 5 . . 1 2 . 1 . 1 3 . . . . . . . . . 7 Weapon 17 | . 1 . 1 . . . 1 2 . . 2 . . 2 . 1 1 . . 1 . . . . . . . . . 5 Highest Loss Streak 16 | . 1 . 2 1 4 . 2 4 2 . 3 . . 5 2 1 2 . 1 1 . . . . . . . . . 16 To Critical Strikes 3 | . . . . . 1 . . . . . . . . . . . . . 1 . . . . . . . . . . 1 Average Slot Usage (%) 89 | . 99 100 98 100 92 100 98 88 99 100 99 89 85 85 91 95 92 92 89 83 80 87 84 78 76 80 84 84 78 84 Engine 3 | . 14 14 7 . . 11 2 5 4 7 7 7 7 2 . 1 6 6 5 . . . . . . . . . . . Core 3 | . . . 3 11 9 . 6 1 2 . . . . . 3 5 5 6 4 7 . . . . . . . . . . Reactor 2 | . . . . . . . . 1 . . . . . 4 3 4 . . 1 2 5 5 5 5 5 5 5 5 4 4 Treads 7 | . 28 28 21 22 21 22 17 12 . . 2 . . 8 . . . . . 11 2 . . . . . . . . . Leg 7 | . . . . . . . . . . . . . . . . 12 18 18 17 5 14 16 15 16 16 16 15 15 14 14 Wheel 1 | . . . . . . . . 5 15 15 11 7 6 2 6 3 . . . . . . . . . . . . . . Device 17 | . 3 . 6 11 6 11 20 22 19 15 12 28 22 22 20 13 14 18 17 11 12 19 19 22 21 24 26 29 24 21 Storage 9 | . 14 14 11 11 11 11 9 9 7 7 7 7 7 7 7 6 6 6 6 7 11 11 11 5 5 10 10 10 10 15 Processor 9 | . . . 1 . . . 10 9 23 23 21 14 14 19 21 16 12 12 17 14 12 11 9 5 5 5 5 5 5 5 Protection 10 | . 10 14 24 22 23 22 13 3 8 1 4 7 12 4 14 7 15 11 5 9 6 5 4 5 5 . 4 5 5 8 Energy Gun 4 | . . . 2 22 13 22 8 6 11 8 7 10 12 6 . 6 . . . 4 . . . . . . . . . . Energy Cannon 5 | . . . . . . . 7 8 . . 4 . . 3 6 1 6 7 . 4 11 11 8 10 11 11 14 13 11 13 Ballistic Cannon 1 | . 7 28 18 . . . . . . . . . . . . . . . . . . . . . . . . . . . Slashing Weapon 1 | . . . . . 3 . . 1 . . 2 3 1 1 . . 4 4 5 . . . . . . . . . . . Naked Turns 1 | . . . . . . . . . . . . . . . . . . . . . . . . . . . . . . 1 Heaviest Build 313 | 15 54 54 66 107 109 109 114 101 124 113 131 145 148 128 128 130 147 145 152 191 172 176 179 299 302 298 311 312 312 313 Greatest Support 104 | 40 40 40 40 43 40 40 40 40 24 24 28 28 28 56 28 84 84 84 84 84 84 84 84 60 84 84 104 104 104 84 Greatest Overweight (x) 10 | . 1 1 2 2 2 2 4 4 5 4 10 5 5 4 4 4 1 1 2 4 2 2 2 4 4 3 5 3 4 4 Average Overweight (x) 2 | . . 1 1 1 1 2 1 1 3 4 4 4 4 2 3 1 1 1 1 1 1 1 1 3 3 3 2 2 2 3 Largest Inventory Capacity 35 | 8 20 20 20 25 25 25 25 25 25 25 25 25 25 25 25 25 25 25 25 25 25 25 25 35 35 35 35 35 35 35 Average Capacity 25 | 7 17 20 20 22 23 25 24 20 24 25 25 25 25 21 25 25 25 25 25 23 25 25 24 31 35 35 35 35 34 34 Most Carried 35 | 4 20 20 20 25 25 25 25 24 25 25 25 25 25 25 25 25 25 25 25 25 25 25 25 35 35 35 35 35 35 35 Average Carried 24 | 2 13 19 19 21 21 25 24 19 23 24 24 24 24 19 24 24 24 24 22 18 24 24 21 29 34 34 34 34 33 34 Final Capacity 35 | 8 20 20 20 25 25 25 25 20 25 25 25 25 25 25 25 25 25 25 25 25 25 25 25 35 35 35 35 35 35 5 Final Carried 35 | 4 20 20 20 25 25 25 25 20 24 25 25 25 25 25 25 25 25 25 25 25 25 25 25 35 35 35 35 35 35 4 Class Distribution -------------------- 48% | Scavenger-Mutant 26% | Mutant 8% | Hauler-Golem 5% | Hauler-Mutant Dominant Class ---------------- Mutant | -10/Materials Mutant | -10/Mines Mutant | -9/Materials Mutant | -9/Mines Mutant | -9/Exiles Mutant | -8/Mines Scavenger-Mutant | -8/Materials Scavenger-Mutant | -8/Garrison Scavenger-Assassin | -7/Factory Scavenger-Mutant | -7/Waste Scavenger-Mutant | -7/Factory Scavenger-Mutant | -7/Lower Caves Mutant | -7/Lower Caves Scavenger-Mutant | -7/Data Miner Scavenger-Mutant | -6/Proximity Caves Scavenger-Mutant | -6/Factory Scavenger-Mutant | -6/Lower Caves Scavenger-Mutant | -6/Lower Caves Scavenger-Mutant | -6/Zion Scavenger-Mutant | -6/Deep Caves Mutant | -5/Proximity Caves Commander-Mutant | -5/Factory Golem | -5/Upper Caves Hauler-Golem | -5/Upper Caves Hauler-Mutant | -5/Zhirov Hauler-Mutant | -4/Proximity Caves Hauler-Tank | -4/Factory Hauler-Golem | -4/Upper Caves Hauler-Golem | -4/Upper Caves Hauler-Golem | -4/Warlord Resources | -11 -10 -10 -9 -9 -9 -8 -8 -8 -7 -7 -7 -7 -7 -7 -6 -6 -6 -6 -6 -6 -5 -5 -5 -5 -5 -4 -4 -4 -4 -4 ----------- Run | Scr Mat Min Mat Min Exi Min Mat Gar Fac Was Fac Low Low Dat Pro Fac Low Low Zio Dee Pro Fac Upp Upp Zhi Pro Fac Upp Upp War Matter Collected 13837 | 294 387 27 1114 133 983 31 682 567 233 . 951 142 196 245 260 459 247 85 1447 2990 200 116 264 274 . 170 170 329 411 430 Remotely 1910 | . . . . . . . . . . . . . . . . . . . . 1812 . . . . . . . . 98 . Salvage Created 23002 | 89 585 11 1900 79 640 295 1745 1072 451 . 2187 383 292 399 1047 1167 725 393 441 2651 1148 661 338 323 . 80 383 571 548 2398 Parts 1044 | 4 43 4 114 11 84 25 90 37 11 . 106 5 14 12 40 53 27 8 19 76 34 36 13 18 . 1 21 23 17 98 Haulers Intercepted 9 | . 1 . 2 . . . 4 . . . 1 . . . . 1 . . . . . . . . . . . . . . Recyclers Shooed 10 | . 2 . 3 . . . 3 . 1 . 1 . . . . . . . . . . . . . . . . . . . Parts Field Recycled . | . . . . . . . . . . . . . . . . . . . . . . . . . . . . . . . Retrieved Matter . | . . . . . . . . . . . . . . . . . . . . . . . . . . . . . . . Parts Self-Destructed 359 | . . . . . . . . . . . . 7 12 . 14 . 44 22 2 . 107 . 32 32 . 40 . 20 27 . Prevented 17 | . . . . . . . . . . . . . . . 4 . 2 . 1 . . . 2 3 . . . 3 2 . Kills | -11 -10 -10 -9 -9 -9 -8 -8 -8 -7 -7 -7 -7 -7 -7 -6 -6 -6 -6 -6 -6 -5 -5 -5 -5 -5 -4 -4 -4 -4 -4 ------- Run | Scr Mat Min Mat Min Exi Min Mat Gar Fac Was Fac Low Low Dat Pro Fac Low Low Zio Dee Pro Fac Upp Upp Zhi Pro Fac Upp Upp War Combat Hostiles Destroyed 300 | . 12 3 44 6 3 15 30 18 6 . 29 . 12 4 8 11 7 . . 10 6 8 6 . . 1 5 13 8 35 Melee 20 | . . . . . 1 . 1 1 . . 12 . . . 2 . 1 . . 2 . . . . . . . . . . Guns 66 | . 11 . 1 3 . 13 8 . 6 . 6 . 6 1 1 8 1 . . 1 . . . . . . . . . . Cannons 147 | . 1 . 33 . . . 16 11 . . 7 . . . 2 1 3 . . 3 6 7 4 . . 1 5 9 6 32 AOE 59 | . . 3 10 3 2 2 5 6 . . 4 . 6 1 3 . 2 . . . . 1 2 . . . . 4 2 3 Classes Destroyed 27 | 2 5 . 5 . 3 . . 1 1 . 1 1 . . . . 1 . . 3 . 1 1 . . . 1 . . 1 Worker 17 | . . . 2 . . 1 4 . 2 . 2 . . . . 5 . . . . . 1 . . . . . . . . Builder 6 | . . . . . . . . . . . 3 . . . . 1 . . . . . 2 . . . . . . . . Tunneler 3 | 1 . . . . . . 2 . . . . . . . . . . . . . . . . . . . . . . . Hauler 9 | . 1 . 2 . . . 4 . . . 1 . . . . 1 . . . . . . . . . . . . . . Recycler 21 | 1 1 . 5 . . 1 2 . 1 . 6 . . . . 1 . . . . 2 1 . . . . . . . . Minesweeper 9 | . . . . . . . . . . . . 1 . . 2 . . 2 . . . . 1 1 . . . 1 1 . Operator 5 | . 1 . 2 . . . 1 . . . . . . . . . . . . . . 1 . . . . . . . . Turret 1 | . . . . . 1 . . . . . . . . . . . . . . . . . . . . . . . . . Watcher 25 | . 3 . 5 . . . 5 1 1 . 4 . . . . 3 . . . . 2 . . . . . 1 . . . Swarmer 56 | . 3 3 6 4 . 12 3 7 . . 1 . 6 . . . . . . . . . 4 . . . . 7 . . Saboteur 1 | . . . . . . . . . . . . . . . . . . . . . . 1 . . . . . . . . Grunt 134 | . 9 . 26 2 . 2 18 7 3 . 16 . 4 . 7 7 1 . . . . 6 . . . . 2 1 2 21 Brawler 10 | . . . 1 . . 1 1 . 1 . . . . . 1 1 1 . . . 1 . 1 . . 1 . . . . Duelist 10 | . . . 1 . . . 1 2 . . 3 . . . . . . . . . 1 . . . . . . 1 . 1 Protector 2 | . . . 1 . . . . . . . . . . . . . . . . . . . . . . . . . . 1 Sentry 30 | . . . 9 . . . 7 2 1 . 5 . 1 . . . . . . . 2 . . . . . 1 2 . . Demolisher 1 | . . . . . . . . . . . . . . . . . . . . . . . . . . . 1 . . . Specialist 4 | . . . . . . . . . . . . . . . . . 3 . . . . . . . . . . . . 1 Hunter 13 | . . . . . . . . 1 . . . . . . . 2 . . . . 2 . . . . . . 2 4 2 Programmer 19 | . . . . . . . . . 1 . 4 . 1 . . 1 2 . . . . . . . . . 1 . 2 7 Enhanced Grunt 4 | . . . . . . . . . . . . . . 4 . . . . . . . . . . . . . . . . Tracker 1 | . . . . . . . . . . . . . . . . . . . . . . 1 . . . . . . . . Combat Programmer 1 | . . . . . . . . . . . . . . . . . . . . . . 1 . . . . . . . . Executioner 2 | . . . . . . . . . . . . . . . . . . . . . . . . . . . . . . 2 Zionite 20 | . . . . . 8 . . . . . . . . . . . . . 12 . . . . . . . . . . . Z-Technician 4 | . . . . . . . . . . . . . . . . . . . . 4 . . . . . . . . . . Z-Light 1 | . . . . . . . . . . . . . . . . . . . . 1 . . . . . . . . . . Decomposer 9 | . . . . . . . . . . . . 2 . . . . . 5 . . . . . . . . . . 2 . Packrat 4 | . . . . . . . . . . . . 3 . . . . . . . . . . . 1 . . . . . . Tinkerer 1 | . . . . . . . . . . . . . . . . . . . . . . . 1 . . . . . . . Assembler 2 | . . . . . . . . . . . . . . . . . . . . 2 . . . . . . . . . . Assembled 6 | . . . . . 6 . . . . . . . . . . . . . . . . . . . . . . . . . Golem 10 | . . . . . . . . . . . . . . . . . . . . 9 . . 1 . . . . . . . Best Kill Streak 8 | 2 6 3 8 4 6 8 4 3 6 . 5 1 5 3 3 5 3 1 2 3 2 5 4 1 . 1 2 6 3 4 Combat Bots Only 5 | . 4 3 5 4 2 4 3 3 4 . 4 . 5 3 3 4 3 . . 2 2 3 4 . . 1 2 5 3 4 Max Kills in Single Turn 4 | 1 2 3 3 3 4 2 2 3 1 . 2 1 3 1 2 1 2 1 2 1 1 2 2 1 . 1 1 4 1 3 Gunslinging 1 | . 1 . . . . . . . . . . . . . . . . . . . . . . . . . . . . . Exploded 4 | . . 3 3 3 2 2 2 2 . . 2 . 3 1 2 . 2 . . . . 1 2 . . . . 4 1 3 Melee 1 | . . . . . 1 . 1 1 . . 1 . . . 1 . 1 . . 1 . . . . . . . . . . Uniques/NPCs Destroyed 6 | . . . . . 4 . . . . . . . . 1 . . . . 1 . . . . . . . . . . . 8R-AWN (-9/Exiles) EX-DEC (-9/Exiles) EX-HEX (-9/Exiles) EX-BIN (-9/Exiles) Data Miner (-7/Data Miner) Imprinter (-6/Zion) Combat | -11 -10 -10 -9 -9 -9 -8 -8 -8 -7 -7 -7 -7 -7 -7 -6 -6 -6 -6 -6 -6 -5 -5 -5 -5 -5 -4 -4 -4 -4 -4 -------- Run | Scr Mat Min Mat Min Exi Min Mat Gar Fac Was Fac Low Low Dat Pro Fac Low Low Zio Dee Pro Fac Upp Upp Zhi Pro Fac Upp Upp War Damage Taken 22330 | . 490 62 1179 164 949 379 1790 1585 614 . 2551 . 313 955 750 693 1023 . 976 2083 132 413 36 . 44 . 57 206 302 4584 Core 3066 | . 75 . 145 25 83 29 269 157 57 . 336 . 9 156 55 34 89 . 72 288 . 37 . . . . . 15 28 1107 Absorbed by Shields 2634 | . . . 212 . . . . . . . . . 86 12 39 . . . 222 . . 240 64 . . . 48 216 119 1376 Redirected to Shielding 211 | . . . 17 . . . . . . . . . . . . . . . . . . . . . . . . . 33 161 Regen/Repaired (Parts) 709 | . . . . . . . . . 473 . 83 . . . . 126 . . . . . 27 . . . . . . . . Core Remaining (%) 53 | 100 . 70 . . . 29 . 22 . . . . . . 12 . . . . . 43 . . . . 96 . . . . Volleys Fired 1380 | 4 50 1 103 6 78 18 117 69 24 5 64 . 12 18 32 32 30 1 179 232 68 34 16 20 13 5 26 29 23 71 Largest 3 | 2 2 1 2 2 2 2 2 2 2 1 2 . 2 2 2 2 2 1 1 2 2 2 3 3 1 2 3 3 3 3 Hottest 170 | 40 80 33 100 130 130 130 150 143 122 5 160 . 160 170 170 115 120 90 90 115 50 50 70 70 39 50 75 75 75 75 Shots Fired 2125 | 8 100 2 195 11 81 35 206 120 48 5 106 . 17 27 35 62 43 1 180 270 95 65 29 25 13 7 42 62 58 177 Gun 598 | 8 82 . 1 10 39 34 91 20 48 . 60 . 13 26 5 59 10 . . 92 . . . . . . . . . . Cannon 1025 | . 18 1 186 . 11 . 95 96 . . 41 . . 1 11 3 32 1 5 26 73 65 18 6 7 4 42 58 54 171 Launcher 220 | . . 1 8 1 4 1 4 4 . . 3 . 4 . 5 . 1 . 174 . . . 1 . 1 . . 1 4 3 Special 282 | . . . . . 27 . 16 . . 5 2 . . . 14 . . . 1 152 22 . 10 19 5 3 . 3 . 3 Kinetic 337 | 8 95 1 186 . 37 . 5 5 . . . . . . . . . . . . . . . . . . . . . . Thermal 1415 | . 5 . 1 10 40 34 197 111 48 . 101 . 13 2 30 6 42 1 6 240 73 65 28 23 7 4 42 61 54 171 Explosive 46 | . . 1 8 1 4 1 4 4 . . 3 . 4 . 5 . 1 . . . . . 1 . 1 . . 1 4 3 Electromagnetic 285 | . . . . . . . . . . . . . . 25 . 56 . . 174 30 . . . . . . . . . . Robot Hit Streak 52 | 7 14 7 14 7 9 10 37 19 16 8 13 . 9 17 13 10 27 7 9 20 32 9 10 14 10 14 32 12 16 52 Robot Miss Streak 11 | 1 4 . 6 3 7 11 7 3 2 1 3 . 2 1 2 2 1 . . 4 1 6 1 1 . . . 2 2 2 Penetration Max 1 | . . . . . 1 . . . . . . . . . . . . . . . . . . . . . . . . . Secondary Targets 6 | . 3 . . . . 1 . . . . 1 . . . . 1 . . . . . . . . . . . . . . Max Gunslinging Chain 1 | . 1 . . . . 1 . . . . 1 . . . . 1 . . . . . . . . . . . . . . Shots Hit Robots 1572 | 7 70 2 109 11 84 30 173 110 44 4 134 11 15 26 53 55 37 12 14 217 73 19 19 18 5 4 18 34 33 131 Core Hits 943 | 3 29 2 84 14 43 46 136 41 20 . 80 4 28 18 34 32 20 8 18 127 16 16 13 6 . 1 9 18 15 62 Critical Kills 6 | . . . . . 2 . 1 . . . . . . . . 2 . . . 1 . . . . . . . . . . Critical Parts Destroyed 11 | . . . . . 4 . 2 . . . 2 . . 1 . 1 . . . 1 . . . . . . . . . . Critical Strikes 44 | . 1 1 4 . 8 . 5 2 2 . 7 . . 1 3 3 . . 2 5 . . . . . . . . . . Burn 6 | . . . . . . . 2 . 2 . 1 . . . . . . . . 1 . . . . . . . . . . Destroy 9 | . . . . . 6 . 3 . . . . . . . . . . . . . . . . . . . . . . . Blast 6 | . 1 1 4 . . . . . . . . . . . . . . . . . . . . . . . . . . . Corrupt 1 | . . . . . . . . . . . . . . . . . . . . 1 . . . . . . . . . . Smash 8 | . . . . . . . . . . . 2 . . 1 . 3 . . . 2 . . . . . . . . . . Sever 11 | . . . . . 2 . . 2 . . 4 . . . . . . . 2 1 . . . . . . . . . . Impale 3 | . . . . . . . . . . . . . . . 3 . . . . . . . . . . . . . . . Melee Attacks 767 | . . . 6 . 48 . 2 42 8 . 71 12 1 18 49 16 31 11 399 20 . 23 3 . . . . . 1 6 Impact 95 | . . . . . . . 1 8 6 . 7 . . 2 . 16 2 . . 20 . 23 3 . . . . . 1 6 Slashing 602 | . . . 6 . 48 . 1 30 . . 64 12 1 1 . . 29 11 399 . . . . . . . . . . . Piercing 64 | . . . . . . . . . . . . . . 15 49 . . . . . . . . . . . . . . . Sneak Attacks 36 | . . . 3 . . . . . 2 . 4 8 . 2 3 6 1 6 . . . . 1 . . . . . . . Combat Hostiles 1 | . . . . . . . . . . . . . . . . . 1 . . . . . . . . . . . . . Follow-up Attacks 9 | . . . . . 7 . . . . . . . . 1 . . . . 1 . . . . . . . . . . . Damage Inflicted 53084 | 85 969 188 3201 371 3181 639 3967 3452 780 . 4052 700 827 599 2557 2057 1522 801 876 4844 2403 1574 1095 378 . 53 853 1928 1764 7368 Guns 9424 | 85 778 . 8 129 380 415 1392 237 689 . 1016 . 336 267 144 1251 354 . . 1943 . . . . . . . . . . Cannons 23178 | . 191 18 1849 . 389 . 1872 1555 . . 621 . . . 330 65 630 34 . 893 2403 1293 421 114 . 53 853 1576 1420 6598 Explosions 7141 | . . 170 970 238 490 203 509 351 . . 322 . 491 111 653 53 218 . 468 53 . 281 249 . . . . 317 344 650 Melee 10804 | . . . 352 . 1677 . 36 1309 91 . 2093 700 . 221 1264 688 320 767 408 412 . . 346 . . . . . . 120 Ramming 110 | . . . 22 4 . 21 63 . . . . . . . . . . . . . . . . . . . . . . . Kinetic 3333 | 85 916 18 1849 . 351 . 78 36 . . . . . . . . . . . . . . . . . . . . . . Thermal 30116 | . 53 . 8 129 663 415 3281 1756 689 . 1637 . 336 111 640 200 984 34 . 4071 2403 1293 500 378 . 53 853 1611 1420 6598 Explosive 6391 | . . 170 905 238 490 203 509 351 . . 322 . 491 . 653 . 218 . . . . 281 249 . . . . 317 344 650 Electromagnetic 2330 | . . . 65 . . . . . . . . . . 267 . 1169 . . 468 361 . . . . . . . . . . Impact 2168 | . . . . . . . . . 91 . 268 . . 91 . 688 152 . . 412 . . 346 . . . . . . 120 Slashing 7316 | . . . 352 . 1677 . 36 1309 . . 1825 700 . 74 . . 168 767 408 . . . . . . . . . . . Piercing 1320 | . . . . . . . . . . . . . . 56 1264 . . . . . . . . . . . . . . . Highest Corruption 31 | . 1 1 . . . . 3 . . 16 14 . . 9 31 3 3 . 6 4 . 2 2 . . . . . . 5 Average Corruption 3 | . 1 1 . . . . 2 . . 10 7 . . 5 23 1 2 . 3 3 . 1 1 . . . . . . 1 Corruption Purged 62 | . . . . . . . 3 . . 5 17 . . 9 . 4 3 . 14 4 . . 2 . . . . . . 1 Corruption Blocked . | . . . . . . . . . . . . . . . . . . . . . . . . . . . . . . . Effects 143 | . 9 12 . . . . 6 . . 5 47 . . 10 1 5 6 . 23 8 . 2 3 . . . . . . 6 Message Errors 36 | . 2 2 . . . . 1 . . 2 12 . . 4 . 1 2 . 5 2 . . . . . . . . . 3 Matter Fused 37 | . 2 3 . . . . 2 . . 1 14 . . . 1 3 2 . 5 2 . 1 . . . . . . . 1 Heat Flow Errors 14 | . . 1 . . . . 1 . . . 6 . . 2 . 1 . . 1 . . . 1 . . . . . . 1 Energy Discharges 24 | . 1 1 . . . . 2 . . 2 7 . . 2 . . 2 . 5 2 . . . . . . . . . . Data Loss (minor) 16 | . 2 1 . . . . . . . . 3 . . 2 . . . . 4 2 . . 1 . . . . . . 1 Data Loss (major) 7 | . . 1 . . . . . . . . 2 . . . . . . . 3 . . 1 . . . . . . . . Misfires 4 | . 1 1 . . . . . . . . 2 . . . . . . . . . . . . . . . . . . . Alerts 3 | . . 2 . . . . . . . . . . . . . . . . . . . . 1 . . . . . . . Weapon Failures 2 | . 1 . . . . . . . . . 1 . . . . . . . . . . . . . . . . . . . Overload Shots . | . . . . . . . . . . . . . . . . . . . . . . . . . . . . . . . Overflow Damage 3371 | . . 28 170 93 26 . 50 117 12 . 231 272 . 78 340 404 136 210 69 123 177 77 276 . . . 96 105 123 158 Projectiles 942 | . . . 31 . . . 10 22 . . . . . . 11 52 47 . . 32 177 68 10 . . . 96 105 123 158 Explosions 344 | . . 28 10 93 26 . 40 36 . . . . . . 46 . . . 56 . . 9 . . . . . . . . Melee 2085 | . . . 129 . . . . 59 12 . 231 272 . 78 283 352 89 210 13 91 . . 266 . . . . . . . Knockbacks 31 | . 1 . 21 . . . . . 1 . 1 . . . . . 1 . . 5 . . . . . . . . . 1 Impact 9 | . . . . . . . . . 1 . 1 . . . . . 1 . . 5 . . . . . . . . . 1 Kinetic 22 | . 1 . 21 . . . . . . . . . . . . . . . . . . . . . . . . . . . Secondary . | . . . . . . . . . . . . . . . . . . . . . . . . . . . . . . . Self-Inflicted Damage 467 | . . 46 104 . . . . 117 . . 88 . 25 54 . . . . 15 . . . . . . . . 18 . . Shots 15 | . . 1 3 . . . . 3 . . 2 . 1 1 . . . . 3 . . . . . . . . 1 . . Rammed 15 | . . . 6 1 . 2 6 . . . . . . . . . . . . . . . . . . . . . . . Targets Rammed 18 | . . . 6 1 . 3 8 . . . . . . . . . . . . . . . . . . . . . . . Kicked . | . . . . . . . . . . . . . . . . . . . . . . . . . . . . . . . Crushed 3 | . . . . . . 1 2 . . . . . . . . . . . . . . . . . . . . . . . Highest Temperature 444 | . 60 265 180 66 94 213 417 194 126 . 401 . 92 183 87 297 57 24 164 444 . . 69 . . . . . . 116 Average Temperature 69 | . 17 127 49 32 28 91 96 64 37 . 85 . 31 35 34 91 21 18 35 119 . . 40 . . . . . . 61 Received Heat Transfer 4858 | . 255 . 341 72 . 99 765 585 288 . 756 . 88 . 360 207 99 . 37 356 27 47 . . 9 . 19 10 15 423 Effects 6 | . . . . . . . 3 . . . . . . . . . . . . 3 . . . . . . . . . . Shutdowns 4 | . . . . . . . 1 . . . . . . . . . . . . 3 . . . . . . . . . . Energy Bleed 1 | . . . . . . . 1 . . . . . . . . . . . . . . . . . . . . . . . Damage (minor) 1 | . . . . . . . 1 . . . . . . . . . . . . . . . . . . . . . . . Siege Activations . | . . . . . . . . . . . . . . . . . . . . . . . . . . . . . . . Robots Corrupted 7 | . . . . . . . . . . . . . . 2 . 2 . . . 3 . . . . . . . . . . Combat Hostiles 7 | . . . . . . . . . . . . . . 2 . 2 . . . 3 . . . . . . . . . . Parts Fried 20 | . . . . . . . . . . . . . . 4 . 12 1 . . . . . 1 . . . . . 1 1 Impact Corruptions 23 | . . . . . . . . . 1 . 3 . . 1 . 11 1 . . 2 . . 4 . . . . . . . Robots Melted 1 | . . . . . . . 1 . . . . . . . . . . . . . . . . . . . . . . . Combat Hostiles . | . . . . . . . . . . . . . . . . . . . . . . . . . . . . . . . Parts Melted 51 | . . . . . 15 1 3 1 6 . 7 . 2 . . 2 1 1 . . 2 . 1 1 . . . 2 1 5 Heat Transferred 34409 | . 111 . 9 160 1766 515 4999 2923 1628 . 3213 . 700 100 818 299 1452 50 . 7580 1250 575 435 605 . 25 450 874 725 3147 Parts Sabotaged 1 | . . . . . . . . . . . . . . . . . . . . . . . . . . . . . . 1 Parts Stolen . | . . . . . . . . . . . . . . . . . . . . . . . . . . . . . . . Parts Stripped . | . . . . . . . . . . . . . . . . . . . . . . . . . . . . . . . Power Chain Reactions 7 | . . . . . . . . . . . . . . 1 . 1 . . 4 1 . . . . . . . . . . Missiles Intercepted . | . . . . . . . . . . . . . . . . . . . . . . . . . . . . . . . Alert | -11 -10 -10 -9 -9 -9 -8 -8 -8 -7 -7 -7 -7 -7 -7 -6 -6 -6 -6 -6 -6 -5 -5 -5 -5 -5 -4 -4 -4 -4 -4 ------- Run | Scr Mat Min Mat Min Exi Min Mat Gar Fac Was Fac Low Low Dat Pro Fac Low Low Zio Dee Pro Fac Upp Upp Zhi Pro Fac Upp Upp War Peak Influence 1079 | 10 196 135 721 412 . 190 484 1079 590 162 568 . . . . 161 . . . . . 563 . . . . 222 . . . Initial 566 | . 6 5 . 280 . . 35 243 566 147 113 . . . . . . . . . . 95 . . . . . . . . Average 263 | 3 64 35 222 136 . 55 239 797 512 158 262 . . . . 61 . . . . . 301 . . . . 59 . . . Maximum Alert Level 3 | . . . 3 2 . . 2 3 2 . 2 . . . . . . . . . . 2 . . . . 1 . . . Low Security (%) 52 | 100 100 100 58 61 . 100 37 . . 100 51 . . . . 100 . . . . . 35 . . . . 93 . . . Level 1 25 | . . . 21 19 . . 59 9 1 . 21 . . . . . . . . . . 30 . . . . 6 . . . Level 2 13 | . . . 14 18 . . 2 23 98 . 27 . . . . . . . . . . 34 . . . . . . . . Level 3 8 | . . . 5 . . . . 67 . . . . . . . . . . . . . . . . . . . . . . Level 4 . | . . . . . . . . . . . . . . . . . . . . . . . . . . . . . . . Level 5 . | . . . . . . . . . . . . . . . . . . . . . . . . . . . . . . . High Security . | . . . . . . . . . . . . . . . . . . . . . . . . . . . . . . . Max Security . | . . . . . . . . . . . . . . . . . . . . . . . . . . . . . . . Squads Dispatched 50 | . 4 . 7 . . . 4 . 2 . 17 . . . . 3 . . . . . 8 . . . . 5 . . . Investigation 19 | . 3 . 4 . . . . . . . 7 . . . . 1 . . . . . 3 . . . . 1 . . . Extermination 10 | . . . . . . . . . 2 . 4 . . . . 1 . . . . . 1 . . . . 2 . . . Reinforcement 10 | . 1 . 1 . . . 1 . . . 5 . . . . 1 . . . . . . . . . . 1 . . . Assault 2 | . . . 2 . . . . . . . . . . . . . . . . . . . . . . . . . . . Garrison 7 | . . . . . . . 3 . . . 1 . . . . . . . . . . 2 . . . . 1 . . . Intercept 2 | . . . . . . . . . . . . . . . . . . . . . . 2 . . . . . . . . Searches Triggered . | . . . . . . . . . . . . . . . . . . . . . . . . . . . . . . . Construction Impeded . | . . . . . . . . . . . . . . . . . . . . . . . . . . . . . . . Haulers Reinforced 2 | . . . . . . . . . . . 1 . . . . 1 . . . . . . . . . . . . . . Active Scanning Responses . | . . . . . . . . . . . . . . . . . . . . . . . . . . . . . . . Cargo Convoy Interrupts . | . . . . . . . . . . . . . . . . . . . . . . . . . . . . . . . Stealth | -11 -10 -10 -9 -9 -9 -8 -8 -8 -7 -7 -7 -7 -7 -7 -6 -6 -6 -6 -6 -6 -5 -5 -5 -5 -5 -4 -4 -4 -4 -4 --------- Run | Scr Mat Min Mat Min Exi Min Mat Gar Fac Was Fac Low Low Dat Pro Fac Low Low Zio Dee Pro Fac Upp Upp Zhi Pro Fac Upp Upp War Distress Signals 11 | . 1 . 5 . . . 2 1 . . . . . . . . . . . . . . . . . . 1 . . 1 Communications Jammed 37 | . . . . . . . 1 . . . 17 . . . . . . . . . . . . . . . . . . 19 Distress Signals 36 | . . . . . . . . . . . 17 . . . . . . . . . . . . . . . . . . 19 Times Spotted 647 | . 23 3 66 7 47 13 57 27 10 5 50 . 12 5 12 15 12 6 87 24 21 19 14 7 3 11 8 15 9 59 Peak Tracking Total 15 | . 3 3 5 4 10 4 4 4 6 2 5 . 5 3 7 3 5 4 6 5 5 4 4 6 3 6 2 7 3 15 Tactical Retreats 70 | . 1 . 3 1 21 1 6 3 1 . 6 . . 1 . . . . 5 . 2 . 6 3 . 5 . . 1 4 Traps | -11 -10 -10 -9 -9 -9 -8 -8 -8 -7 -7 -7 -7 -7 -7 -6 -6 -6 -6 -6 -6 -5 -5 -5 -5 -5 -4 -4 -4 -4 -4 ------- Run | Scr Mat Min Mat Min Exi Min Mat Gar Fac Was Fac Low Low Dat Pro Fac Low Low Zio Dee Pro Fac Upp Upp Zhi Pro Fac Upp Upp War Traps Triggered 20 | . 2 . 1 . . . 1 8 2 . 6 . . . . . . . . . . . . . . . . . . . Indirectly . | . . . . . . . . . . . . . . . . . . . . . . . . . . . . . . . Trap Hack Attempts . | . . . . . . . . . . . . . . . . . . . . . . . . . . . . . . . Triggered . | . . . . . . . . . . . . . . . . . . . . . . . . . . . . . . . Disarmed . | . . . . . . . . . . . . . . . . . . . . . . . . . . . . . . . Reprogrammed . | . . . . . . . . . . . . . . . . . . . . . . . . . . . . . . . Reused 6 | . . . . . . . . . . . . . . 1 1 . . . . . . . . . . . . 1 . 3 Traps Extracted 9 | . . . . . . . . . . . . . . . . . . 1 1 . . . . . . . . 4 . 3 Installed 25 | . . . . . . . . . . . . . . 2 1 . . . 7 . . . . . . . . 6 . 9 Triggered 79 | . . . . . . . . . . . . . . . 2 . . 2 . . . . . . . . . 1 1 73 Most Traps Carried 6 | . . . . . . . . . . . . 3 2 2 3 . . 6 6 . . . 6 6 6 6 6 6 6 6 Machines | -11 -10 -10 -9 -9 -9 -8 -8 -8 -7 -7 -7 -7 -7 -7 -6 -6 -6 -6 -6 -6 -5 -5 -5 -5 -5 -4 -4 -4 -4 -4 ---------- Run | Scr Mat Min Mat Min Exi Min Mat Gar Fac Was Fac Low Low Dat Pro Fac Low Low Zio Dee Pro Fac Upp Upp Zhi Pro Fac Upp Upp War Machines Disabled 53 | . 2 . 3 . 8 . 1 5 1 . 1 . . . . . 1 . 16 3 3 6 . 1 1 . . . 1 . Max in Single Turn 3 | . 1 . 1 . 3 . 1 1 1 . 1 . . . . . 1 . 1 1 . 3 . . 1 . . . 1 . Garrison Access 4 | . . . . . . . . . 2 . . . . . . . . . . . . 1 . . . . 1 . . . Garrison Relay 4 | . . . . . . . . 4 . . . . . . . . . . . . . . . . . . . . . . Machines Sabotaged . | . . . . . . . . . . . . . . . . . . . . . . . . . . . . . . . Garrisons Compromised . | . . . . . . . . . . . . . . . . . . . . . . . . . . . . . . . Overloaded Fab Kills . | . . . . . . . . . . . . . . . . . . . . . . . . . . . . . . . Hacking | -11 -10 -10 -9 -9 -9 -8 -8 -8 -7 -7 -7 -7 -7 -7 -6 -6 -6 -6 -6 -6 -5 -5 -5 -5 -5 -4 -4 -4 -4 -4 --------- Run | Scr Mat Min Mat Min Exi Min Mat Gar Fac Was Fac Low Low Dat Pro Fac Low Low Zio Dee Pro Fac Upp Upp Zhi Pro Fac Upp Upp War Machines Accessed 106 | . 9 . 13 . 2 1 13 . 7 . 14 1 . 4 . 6 1 1 . . 4 11 1 . 9 . 6 2 1 . Terminals 46 | . 7 . 10 . . 1 8 . 2 . 5 . . . . 3 . . . . 2 4 . . . . 4 . . . Fabricators 11 | . . . . . . . . . 1 . 4 . . . . 1 . . . . 1 3 . . . . 1 . . . Repair Stations 6 | . . . . . . . 1 . 1 . 2 . . . . 1 . . . . . 1 . . . . . . . . Recycling Units 9 | . 2 . 2 . . . 2 . 1 . 1 . . . . . . . . . 1 . . . . . . . . . Scanalyzers 7 | . . . 1 . . . 1 . . . 2 . . . . 1 . . . . . 2 . . . . . . . . Garrison Access 5 | . . . . . . . 1 . 2 . . . . . . . . . . . . 1 . . . . 1 . . . Total Hacks 336 | . 22 . 35 . 2 2 32 . 15 . 51 1 . 31 . 26 1 1 . . 8 33 1 . 44 . 28 2 1 . Successful 225 | . 13 . 20 . 2 . 18 . 9 . 26 1 . 31 . 15 1 1 . . 5 13 1 . 44 . 22 2 1 . Failed 110 | . 8 . 15 . . 2 14 . 6 . 25 . . . . 11 . . . . 3 20 . . . . 6 . . . Catastrophic 16 | . 1 . 3 . . . 1 . . . 4 . . . . 2 . . . . 1 3 . . . . 1 . . . Database Lockouts 1 | . 1 . . . . . . . . . . . . . . . . . . . . . . . . . . . . . Manual 130 | . 15 . 30 . 1 2 14 . 7 . 14 . . . . 9 1 . 5 . 3 14 . . . . 15 . . . Terminals 148 | . 20 . 32 . . 2 24 . 4 . 21 . . . . 11 . . . . 3 13 . . . . 18 . . . Fabricators 39 | . . . . . . . . . 2 . 13 . . . . 7 . . . . 2 8 . . . . 7 . . . Repair Stations 20 | . . . . . . . 2 . 3 . 6 . . . . 7 . . . . . 2 . . . . . . . . Recycling Units 14 | . 2 . 2 . . . 3 . 3 . 1 . . . . . . . . . 3 . . . . . . . . . Scanalyzers 21 | . . . 1 . . . 2 . . . 10 . . . . 1 . . . . . 7 . . . . . . . . Garrison Access 10 | . . . . . . . 1 . 3 . . . . . . . . . . . . 3 . . . . 3 . . . Terminal Hacks 136 | . 8 . 14 . 2 . 8 . 2 . 5 1 . 31 . 1 1 1 . . 3 2 1 . 44 . 9 2 1 . Record 51 | . . . . . 1 . . . . . . . . 11 . . . . . . 2 . . . 36 . . . 1 . Part Schematic 21 | . . . 2 . . . . . 1 . . . . 12 . 1 . . . . . . . . 4 . 1 . . . Robot Schematic 5 | . . . . . . . . . . . . . . 5 . . . . . . . . . . . . . . . . Robot Analysis 4 | . 1 . 1 . . . 2 . . . . . . . . . . . . . . . . . . . . . . . Prototype ID Bank 13 | . 1 . 5 . . . . . . . . . . 3 . . . . . . . . . . 4 . . . . . Open Door 7 | . . . . . . . . . . . . 1 . . . . 1 1 . . 1 . 1 . . . . 2 . . Branch Access Points 3 | . . . . . . . . . . . 1 . . . . . . . . . . 1 . . . . 1 . . . Terminal Index 1 | . . . . . . . . . . . 1 . . . . . . . . . . . . . . . . . . . Fabricator Index 2 | . . . . . . . . . . . 1 . . . . . . . . . . . . . . . 1 . . . Repair Station Index 1 | . . . . . . . . . . . . . . . . . . . . . . . . . . . 1 . . . Alert Level 2 | . . . 1 . . . 1 . . . . . . . . . . . . . . . . . . . . . . . Unreport Threat 7 | . 1 . 3 . . . 2 . . . . . . . . . . . . . . . . . . . 1 . . . Locate Traps 9 | . 3 . 1 . . . 2 . 1 . . . . . . . . . . . . 1 . . . . 1 . . . Recall Investigation 1 | . . . . . . . . . . . 1 . . . . . . . . . . . . . . . . . . . Recall Extermination 1 | . . . . . . . . . . . . . . . . . . . . . . . . . . . 1 . . . Hauler Manifests 6 | . 2 . 1 . . . 1 . . . 1 . . . . . . . . . . . . . . . 1 . . . Zone Layout 1 | . . . . . . . . . . . . . . . . . . . . . . . . . . . 1 . . . EX-Prototype ID Bank 1 | . . . . . 1 . . . . . . . . . . . . . . . . . . . . . . . . . Fabricator Hacks 17 | . . . . . . . . . 1 . 3 . . . . 6 . . . . . 2 . . . . 5 . . . Network Status 1 | . . . . . . . . . 1 . . . . . . . . . . . . . . . . . . . . . Load Schematic 11 | . . . . . . . . . . . 3 . . . . 3 . . . . . 2 . . . . 3 . . . Build 5 | . . . . . . . . . . . . . . . . 3 . . . . . . . . . . 2 . . . Repair Station Hacks 15 | . . . . . . . 1 . 2 . 5 . . . . 5 . . . . . 2 . . . . . . . . Scan Component 9 | . . . . . . . 1 . 1 . 3 . . . . 3 . . . . . 1 . . . . . . . . Repair 6 | . . . . . . . . . 1 . 2 . . . . 2 . . . . . 1 . . . . . . . . Recycling Unit Hacks 2 | . . . . . . . . . . . 1 . . . . . . . . . 1 . . . . . . . . . Report Inventory 1 | . . . . . . . . . . . . . . . . . . . . . 1 . . . . . . . . . Retrieve Components 1 | . . . . . . . . . . . 1 . . . . . . . . . . . . . . . . . . . Scanalyzer 10 | . . . . . . . 2 . . . 6 . . . . . . . . . . 2 . . . . . . . . Insert Component 5 | . . . . . . . 1 . . . 2 . . . . . . . . . . 2 . . . . . . . . Analyze 5 | . . . . . . . 1 . . . 4 . . . . . . . . . . . . . . . . . . . Garrison Access Hacks 5 | . . . . . . . 1 . 2 . . . . . . . . . . . . 1 . . . . 1 . . . Unlock Access 1 | . . . . . . . 1 . . . . . . . . . . . . . . . . . . . . . . . Seal Access 4 | . . . . . . . . . 2 . . . . . . . . . . . . 1 . . . . 1 . . . Unauthorized Hacks 40 | . 5 . 6 . . . 6 . 2 . 6 . . . . 3 . . . . 1 4 . . . . 7 . . . Terminals 18 | . 3 . 3 . . . 3 . . . 2 . . . . 3 . . . . . . . . . . 4 . . . Track 1 | . . . . . . . . . . . . . . . . . . . . . . . . . . . 1 . . . Assimilate 1 | . . . . . . . . . . . . . . . . 1 . . . . . . . . . . . . . . Botnet 11 | . 2 . 2 . . . 2 . . . 2 . . . . 1 . . . . . . . . . . 2 . . . Operators 5 | . 1 . 1 . . . 1 . . . . . . . . 1 . . . . . . . . . . 1 . . . Fabricators 8 | . . . . . . . . . . . 4 . . . . . . . . . . 3 . . . . 1 . . . Liberate 1 | . . . . . . . . . . . . . . . . . . . . . . 1 . . . . . . . . Haulers 2 | . . . . . . . . . . . 1 . . . . . . . . . . . . . . . 1 . . . Download 1 | . . . . . . . . . . . 1 . . . . . . . . . . . . . . . . . . . Recompile 4 | . . . . . . . . . . . 2 . . . . . . . . . . 2 . . . . . . . . Repair Stations . | . . . . . . . . . . . . . . . . . . . . . . . . . . . . . . . Recycling Units 10 | . 2 . 2 . . . 3 . 2 . . . . . . . . . . . 1 . . . . . . . . . Reject 4 | . . . . . . . 2 . 1 . . . . . . . . . . . 1 . . . . . . . . . Mask 2 | . . . . . . . 1 . 1 . . . . . . . . . . . . . . . . . . . . . Tunnel 4 | . 2 . 2 . . . . . . . . . . . . . . . . . . . . . . . . . . . Scanalyzers 1 | . . . 1 . . . . . . . . . . . . . . . . . . . . . . . . . . . Extract 1 | . . . 1 . . . . . . . . . . . . . . . . . . . . . . . . . . . Garrison Access 3 | . . . . . . . . . . . . . . . . . . . . . . 1 . . . . 2 . . . Broadcast 2 | . . . . . . . . . . . . . . . . . . . . . . 1 . . . . 1 . . . Watchers 1 | . . . . . . . . . . . . . . . . . . . . . . . . . . . 1 . . . Data Cores Recovered 1 | . . . . . . . . . . . . . . . . . . . . . . 1 . . . . . . . . Used 1 | . . . . . . . . . . . . . . . . . . . . . . 1 . . . . . . . . Hacking Detections 64 | . 7 . 10 . . 1 9 . 5 . 9 . . . . 5 . . . . 3 10 . . . . 5 . . . Full Trace Events 6 | . . . 1 . . . . . . . 2 . . . . 1 . . . . . 1 . . . . 1 . . . Feedback Events . | . . . . . . . . . . . . . . . . . . . . . . . . . . . . . . . Feedback Blocked . | . . . . . . . . . . . . . . . . . . . . . . . . . . . . . . . Robot Schematics Acquired 5 | . . . . . . . . . . . . . . 5 . . . . . . . . . . . . . . . . Robots Built . | . . . . . . . . . . . . . . . . . . . . . . . . . . . . . . . Authchips . | . . . . . . . . . . . . . . . . . . . . . . . . . . . . . . . Time . | . . . . . . . . . . . . . . . . . . . . . . . . . . . . . . . Total Robot Build Rating . | . . . . . . . . . . . . . . . . . . . . . . . . . . . . . . . Part Schematics Acquired 26 | . . . 4 . . . 1 . 1 . 2 . . 12 . 1 . . . . . . . . 4 . 1 . . . Parts Built 5 | . . . . . . . . . . . . . . . . 3 . . . . . . . . . . 2 . . . Authchips 5 | . . . . . . . . . . . . . . . . 3 . . . . . . . . . . 2 . . . Time 354 | . . . . . . . . . . . . . . . . 168 . . . . . . . . . . 186 . . . Total Part Build Rating 32 | . . . . . . . . . . . . . . . . 18 . . . . . . . . . . 14 . . . Parts Repaired 6 | . . . . . . . . . 1 . 2 . . . . 2 . . . . . 1 . . . . . . . . Time 373 | . . . . . . . . . 26 . 113 . . . . 198 . . . . . 36 . . . . . . . . Parts Recycled . | . . . . . . . . . . . . . . . . . . . . . . . . . . . . . . . Recycled Matter . | . . . . . . . . . . . . . . . . . . . . . . . . . . . . . . . Retrieved Matter . | . . . . . . . . . . . . . . . . . . . . . . . . . . . . . . . Retrieved Components 10 | . . . . . . . . . . . 10 . . . . . . . . . . . . . . . . . . . Parts Scanalyzed 2 | . . . . . . . 1 . . . 1 . . . . . . . . . . . . . . . . . . . Part Schematics Acquired 2 | . . . . . . . 1 . . . 1 . . . . . . . . . . . . . . . . . . . Parts Damaged 2 | . . . . . . . 1 . . . 1 . . . . . . . . . . . . . . . . . . . Bothacking | -11 -10 -10 -9 -9 -9 -8 -8 -8 -7 -7 -7 -7 -7 -7 -6 -6 -6 -6 -6 -6 -5 -5 -5 -5 -5 -4 -4 -4 -4 -4 ------------ Run | Scr Mat Min Mat Min Exi Min Mat Gar Fac Was Fac Low Low Dat Pro Fac Low Low Zio Dee Pro Fac Upp Upp Zhi Pro Fac Upp Upp War Used RIF Installer 1 | . . . . . . . . 1 . . . . . . . . . . . . . . . . . . . . . . Robots Hacked 17 | . . . . . . . . 3 2 5 1 . . . . . . . . . . . . . 3 . . . . 3 Non-combat 3 | . . . . . . . . . 2 . 1 . . . . . . . . . . . . . . . . . . . Combat 14 | . . . . . . . . 3 . 5 . . . . . . . . . . . . . . 3 . . . . 3 Robot Hacks Applied 17 | . . . . . . . . 3 2 5 1 . . . . . . . . . . . . . 3 . . . . 3 parse_system 6 | . . . . . . . . . . . . . . . . . . . . . . . . . 3 . . . . 3 find_chute 1 | . . . . . . . . . 1 . . . . . . . . . . . . . . . . . . . . . ignore_parts 1 | . . . . . . . . . 1 . . . . . . . . . . . . . . . . . . . . . map_route 1 | . . . . . . . . . . . 1 . . . . . . . . . . . . . . . . . . . ignore_targets 5 | . . . . . . . . . . 5 . . . . . . . . . . . . . . . . . . . . formatsys_high 3 | . . . . . . . . 3 . . . . . . . . . . . . . . . . . . . . . . Relay Couplers Released 17 | . . . . . . . . 16 . . . . . . . . . . . . . . . . . . 1 . . . Machine Destruction 17 | . . . . . . . . 16 . . . . . . . . . . . . . . . . . . 1 . . . Attached 3 | . . . . . . . . 2 . 1 . . . . . . . . . . . . . . . . . . . . Fabnet Peak Effective % . | . . . . . . . . . . . . . . . . . . . . . . . . . . . . . . . Robots Rewired 17 | . . . . . . . . . . . . . . . . . . . . . 11 . . 2 . 2 . 2 . . Allies Hacked . | . . . . . . . . . . . . . . . . . . . . . . . . . . . . . . . Hacks Repelled . | . . . . . . . . . . . . . . . . . . . . . . . . . . . . . . . Allies | -11 -10 -10 -9 -9 -9 -8 -8 -8 -7 -7 -7 -7 -7 -7 -6 -6 -6 -6 -6 -6 -5 -5 -5 -5 -5 -4 -4 -4 -4 -4 -------- Run | Scr Mat Min Mat Min Exi Min Mat Gar Fac Was Fac Low Low Dat Pro Fac Low Low Zio Dee Pro Fac Upp Upp Zhi Pro Fac Upp Upp War Total Allies 21 | . . . . . . . . 3 . . . . . . . 1 . . . . 11 . . 2 . 2 . 2 . . Largest Group 11 | . . . . . . . . 1 1 . . . . . . 1 1 . . . 11 11 . 2 2 4 4 2 2 2 Highest-Rated Group 268 | . . . . . . . . 21 21 . . . . . . 26 26 . . . 268 268 . 59 59 149 149 78 78 78 Highest-Rated Ally 48 | . . . . . . . . 21 21 . . . . . . 26 26 . . . 41 41 . 30 30 48 48 48 48 48 Total Orders 381 | . . . . . . . . . . . . . . . . . 27 18 51 29 72 2 41 28 1 55 21 7 21 8 STAY 40 | . . . . . . . . . . . . . . . . . 2 . 9 3 9 1 5 2 1 2 . . 2 4 ROAM 7 | . . . . . . . . . . . . . . . . . 3 . 1 . . . 1 1 . 1 . . . . FOLLOW 26 | . . . . . . . . . . . . . . . . . 3 . 8 6 2 1 . . . 2 2 . 2 . EXPLORE 113 | . . . . . . . . . . . . . . . . . 5 9 3 3 20 . 14 12 . 23 13 2 7 2 RETURN 195 | . . . . . . . . . . . . . . . . . 14 9 30 17 41 . 21 13 . 27 6 5 10 2 Ally Attacks 1470 | . . . . . . . . 18 3 . . . . . . . 36 40 551 76 279 73 109 67 1 153 34 . 23 7 Total Damage 26795 | . . . . . . . . 192 55 . . . . . . . 665 769 10028 1079 5265 1598 1781 1510 . 2316 1057 . 269 211 Kills 241 | . . . . . . . . 3 1 . . . . . . . 6 8 118 14 31 14 10 7 . 15 6 . 7 1 Allies Corrupted 4 | . . . . . . . . . . . . . . . . . 1 . 1 . . . . . . 1 1 . . . Allies Melted . | . . . . . . . . . . . . . . . . . . . . . . . . . . . . . . . Fabricated Assembled 2 | . . . . . . . . . . . . . . . . . . . . 2 . . . . . . . . . . Intel | -11 -10 -10 -9 -9 -9 -8 -8 -8 -7 -7 -7 -7 -7 -7 -6 -6 -6 -6 -6 -6 -5 -5 -5 -5 -5 -4 -4 -4 -4 -4 ------- Run | Scr Mat Min Mat Min Exi Min Mat Gar Fac Was Fac Low Low Dat Pro Fac Low Low Zio Dee Pro Fac Upp Upp Zhi Pro Fac Upp Upp War Robot Analysis Total 132 | . 1 . 1 . . . 2 . . . . . . 128 . . . . . . . . . . . . . . . . Derelict Logs Recovered 23 | . . 1 . 2 . . . . . . . 1 2 . 1 . 2 2 1 . 1 . 2 3 . 1 . 2 2 . Drone Launches 305 | . . . . . . . . . . . . . . . . . 19 18 45 25 64 . 30 20 . 38 15 12 16 3 Drone Recoveries 294 | . . . . . . . . . . . . . . . . . 17 18 43 25 64 . 30 20 . 37 11 12 14 3 Exploration | -11 -10 -10 -9 -9 -9 -8 -8 -8 -7 -7 -7 -7 -7 -7 -6 -6 -6 -6 -6 -6 -5 -5 -5 -5 -5 -4 -4 -4 -4 -4 ------------- Run | Scr Mat Min Mat Min Exi Min Mat Gar Fac Was Fac Low Low Dat Pro Fac Low Low Zio Dee Pro Fac Upp Upp Zhi Pro Fac Upp Upp War Turns Passed 97600 | 122 1837 1509 4374 2098 6647 1958 9107 3773 850 158 2437 1896 2922 1471 2937 1202 2367 2477 11908 8014 4045 1653 3364 2428 762 3151 1123 3191 3607 4212 Spaces Moved 35413 | 63 706 626 1415 769 2067 589 2486 1796 450 95 1092 1091 1669 525 1537 466 1125 1271 5113 2684 1263 494 973 758 262 837 322 1247 985 637 Core 8 | 7 . . . . . . . . . . . . . . . . . . . . . . . . . . . . . 1 Treads 11522 | 56 706 626 1415 769 2067 589 2485 923 . . . . . 195 . . . . 160 1531 . . . . . . . . . . Legs 16452 | . . . . . . . 1 . . . . . . . . 244 1125 1271 4953 1081 1263 494 973 758 262 837 322 1247 985 636 Wheels 7431 | . . . . . . . . 873 450 95 1092 1091 1669 330 1537 222 . . . 72 . . . . . . . . . . Hover . | . . . . . . . . . . . . . . . . . . . . . . . . . . . . . . . Flight . | . . . . . . . . . . . . . . . . . . . . . . . . . . . . . . . Fastest Speed 50 | 50 160 240 240 240 240 320 240 105 120 150 140 160 160 130 145 130 190 190 190 160 189 189 189 210 270 295 240 240 210 50 Average Speed 223 | 147 224 240 240 267 300 320 318 182 142 150 164 160 170 188 159 167 190 190 192 237 221 241 208 256 276 295 251 240 246 287 Slowest Speed 480 | 160 240 240 320 320 320 320 480 320 165 150 240 175 175 245 160 190 190 190 360 345 242 242 242 270 295 295 300 242 390 295 Overloaded Moves . | . . . . . . . . . . . . . . . . . . . . . . . . . . . . . . . Propulsion Burnouts . | . . . . . . . . . . . . . . . . . . . . . . . . . . . . . . . Robots Hopped . | . . . . . . . . . . . . . . . . . . . . . . . . . . . . . . . Cave-ins Triggered . | . . . . . . . . . . . . . . . . . . . . . . . . . . . . . . . Teleports 1 | . . . . . . . . . . . . . . . . . . . . . . . . . . . . . . 1 Exploration Rate (%) 77 | 4 99 97 96 99 92 99 85 83 11 81 26 90 93 80 91 14 99 98 95 92 94 16 99 99 62 99 17 99 99 89 Regions Visited 30 Branch Regions 20 Pre-discovered Areas 36 | . 2 2 2 . 1 . . . . . . 1 . 24 . . . 1 . . . . . . 3 . . . . . Known Exits Taken 22 | . . 1 1 . . . 1 . . . 1 1 1 1 1 1 1 1 1 1 1 1 1 1 1 1 1 1 1 . Unknown Exits Taken 5 | 1 1 . . 1 1 1 . . . . . . . . . . . . . . . . . . . . . . . . Scrap Searched 55 | . . 1 . 2 . 1 . . . . . 1 3 . 3 . 12 5 4 . 4 . 4 5 . 5 . 2 3 . Spaces Dug 182 | . . . 1 . 1 11 3 8 4 . 9 1 1 . 11 10 25 . 9 2 4 36 4 2 7 2 16 9 . 6 Terrain Destroyed 755 | . . 15 51 14 48 11 51 19 4 . 21 1 55 11 44 10 48 . 14 4 11 84 23 4 13 3 19 42 79 56 Melee 99 | . . . 1 . 1 . 1 5 4 . 9 1 1 . 11 10 23 . 7 2 . 23 . . . . . . . . Projectile 225 | . . . . . 11 . 19 1 . . 5 . . . 1 . 7 . 2 2 11 37 8 4 7 3 19 24 25 39 AOE 431 | . . 15 50 14 36 11 31 13 . . 7 . 54 11 32 . 18 . 5 . . 24 15 . 6 . . 18 54 17 Terrain Rammed . | . . . . . . . . . . . . . . . . . . . . . . . . . . . . . . . Walls Destroyed . | . . . . . . . . . . . . . . . . . . . . . . . . . . . . . . . Machines Disabled . | . . . . . . . . . . . . . . . . . . . . . . . . . . . . . . . Actions | -11 -10 -10 -9 -9 -9 -8 -8 -8 -7 -7 -7 -7 -7 -7 -6 -6 -6 -6 -6 -6 -5 -5 -5 -5 -5 -4 -4 -4 -4 -4 --------- Run | Scr Mat Min Mat Min Exi Min Mat Gar Fac Was Fac Low Low Dat Pro Fac Low Low Zio Dee Pro Fac Upp Upp Zhi Pro Fac Upp Upp War Total 50735 | 81 861 634 2186 799 2370 621 3433 2119 592 107 1514 1212 1717 973 1933 791 1265 1323 6648 3941 2436 869 2285 1206 291 1516 599 1396 2153 2864 Wait 10977 | 4 66 . 575 1 32 10 660 82 74 . 150 84 11 343 245 218 18 13 773 736 1080 294 1185 333 4 660 207 43 1000 2076 Move 35384 | 62 705 625 1414 768 2066 588 2485 1795 450 94 1091 1090 1668 524 1536 465 1124 1270 5112 2683 1262 493 972 757 261 836 321 1246 984 637 Hop . | . . . . . . . . . . . . . . . . . . . . . . . . . . . . . . . Pick Up 525 | 4 23 3 21 5 34 . 39 23 7 1 22 4 5 19 15 14 15 7 82 71 1 7 27 15 3 3 2 6 42 5 Fast Attach 220 | 7 1 . 11 3 20 . 22 15 5 2 14 5 1 3 10 1 7 2 18 30 6 3 10 2 2 . 5 1 10 4 Attach 193 | . 2 . 8 2 14 . 19 14 3 . 21 2 5 11 8 11 6 1 4 17 4 2 8 3 . 2 6 5 9 6 Detach 216 | . 2 . 3 2 19 . 8 12 2 . 16 2 . 7 4 3 2 . 9 39 9 1 23 4 1 2 10 3 24 9 Swap 363 | . 5 2 14 7 20 2 25 21 16 3 46 4 8 13 11 23 10 7 12 9 . 5 7 6 3 5 17 19 8 35 Drop 608 | . 7 3 25 4 46 . 48 26 3 2 19 9 6 16 22 8 20 11 97 104 6 7 34 10 4 3 5 7 50 6 Fire 1380 | 4 50 1 103 6 78 18 117 69 24 5 64 . 12 18 32 32 30 1 179 232 68 34 16 20 13 5 26 29 23 71 Melee 711 | . . . 6 . 41 . 2 42 8 . 71 12 1 17 49 16 31 11 351 20 . 23 3 . . . . . 1 6 Ram . | . . . . . . . . . . . . . . . . . . . . . . . . . . . . . . . Kick . | . . . . . . . . . . . . . . . . . . . . . . . . . . . . . . . Crush 18 | . . . 6 1 . 3 8 . . . . . . . . . . . . . . . . . . . . . . . Escape Stasis 16 | . . . . . . . . 16 . . . . . . . . . . . . . . . . . . . . . . Rewire 91 | . . . . . . . . 4 . . . . . . . . . . . . . . . 56 . . . 31 . . Trap 25 | . . . . . . . . . . . . . . 2 1 . . . 7 . . . . . . . . 6 . 9 Miscellaneous 8 | . . . . . . . . . . . . . . . . . 2 . 4 . . . . . . . . . 2 . Route ------- -11/Scrapyard -10/Materials (discovered 4 exits: *Mat x3 / [*Min]) -10/Mines (discovered 2 exits: *Mat x2) -9/Materials (discovered 5 exits: *Mat x3 / *Min / [*Sto]) -9/Mines (discovered 3 exits: *Mat x2 / *Exi) -9/Exiles (discovered 2 exits: *Min x2) -8/Mines (discovered 2 exits: *Mat x2) -8/Materials (discovered 3 exits: *Fac x2 / Gar) -8/Garrison (discovered 3 exits: *Fac x3) -7/Factory -7/Waste -7/Factory (discovered 2 exits: *Low x2) -7/Lower Caves -7/Lower Caves -7/Data Miner -6/Proximity Caves -6/Factory (discovered 2 exits: *Low / Ext) -6/Lower Caves -6/Lower Caves (discovered 2 exits: *Fac / *Zio) -6/Zion (discovered 2 exits: *Dee / [*Pro]) -6/Deep Caves -5/Proximity Caves -5/Factory (discovered 3 exits: *Fac / *Upp x2) -5/Upper Caves -5/Upper Caves (discovered 2 exits: *Fac / *Zhi) -5/Zhirov -4/Proximity Caves -4/Factory (discovered 4 exits: *Res x2 / *Upp x2) -4/Upper Caves -4/Upper Caves (discovered 2 exits: *Res / *War) -4/Warlord (discovered 1 exit: *Pro) History --------- Turn | Location | Event 5 | -11/Scrapyard | Discovered new exit (range 15) 123 | -11/Scrapyard | Entered Materials 314 | -10/Materials | Build established: Mutant 413 | -10/Materials | Discovered new exit (range 16) 857 | -10/Materials | Discovered new exit (range 16) 900 | -10/Materials | Central database locked down 1127 | -10/Materials | Discovered new exit (range 14) 1159 | -10/Materials | Identified exit to Materials 1398 | -10/Materials | Discovered new exit (range 7) 1960 | -10/Materials | Entered Mines 2088 | -10/Mines | A weapon hastily lodged in a ceiling crevice suddenly fell to the ground 2109 | -10/Mines | Discovered exit to Materials (range 5) 2110 | -10/Mines | Learned location of Storage (-9) 2334 | -10/Mines | Received a Rocket Launcher from a helpful Derelict 2423 | -10/Mines | Discovered exit to Materials (range 14) 3469 | -10/Mines | Entered Materials 3469 | -9/Materials | Evolved 2 slots: Utility x2 4101 | -9/Materials | Discovered new exit (range 14) 4161 | -9/Materials | Identified exit to Mines 5350 | -9/Materials | Discovered new exit (range 16) 5546 | -9/Materials | Discovered new exit (range 16) 5923 | -9/Materials | Build established: Scavenger-Mutant 6339 | -9/Materials | Discovered new exit (range 9) 7040 | -9/Materials | Discovered new exit (range 16) 7069 | -9/Materials | First assault squad dispatched 7843 | -9/Materials | Entered Mines 7974 | -9/Mines | Learned Materials non-interactive machine intel 7995 | -9/Mines | Discovered new exit (range 6) 8108 | -9/Mines | Deemed a non-threat by the Exiles lab entrance 8108 | -9/Mines | Discovered new exit (range 5) 8195 | -9/Mines | Discovered new exit (range 9) 8816 | -9/Mines | Build established: Mutant 9335 | -9/Mines | Found a damaged Exp. Sensor Array with a note attached 9342 | -9/Mines | Found Prototype Device 9342 | -9/Mines | Identified Exp. Sensor Array 9941 | -9/Mines | Entered Exiles 9999 | -9/Exiles | Discovered new exit (range 14) 10082 | -9/Exiles | Met 8R-AWN 10133 | -9/Exiles | Met EX-HEX 10297 | -9/Exiles | Met EX-DEC 10358 | -9/Exiles | Visited The Gauntlet 10773 | -9/Exiles | Learned location of Zion (-6) 10927 | -9/Exiles | Discovered new exit (range 14) 11113 | -9/Exiles | Met EX-BIN 11177 | -9/Exiles | Aligned with FarCom system 11180 | -9/Exiles | Given EX-Vault access code 11260 | -9/Exiles | Opened EX-Vault 11276 | -9/Exiles | Found Longsword +1 11357 | -9/Exiles | Warned to stay clear of 0b10 Research branches 13260 | -9/Exiles | Found Gui. Plasma Cannon 13842 | -9/Exiles | Attacked by the Exiles 13869 | -9/Exiles | Core integrity fell below 50% 13926 | -9/Exiles | Lost 4 parts (2n2u) 13940 | -9/Exiles | Destroyed 8R-AWN 13945 | -9/Exiles | Found Prototype Device 13945 | -9/Exiles | Identified AS-neutralizer No. 17b 13956 | -9/Exiles | Found Prototype Ballistic Gun 14099 | -9/Exiles | Identified 8R-AWN's Boregun 14459 | -9/Exiles | Destroyed EX-DEC 14467 | -9/Exiles | Found Prototype Processor 14516 | -9/Exiles | Destroyed EX-HEX 14594 | -9/Exiles | Destroyed EX-BIN 14604 | -9/Exiles | Found Prototype Device 14604 | -9/Exiles | Identified System Purifier 15528 | -9/Exiles | Found Deploy-a-Sentry 16588 | -9/Exiles | Entered Mines 17335 | -8/Mines | Discovered new exit (range 9) 18175 | -8/Mines | Discovered new exit (range 10) 18546 | -8/Mines | Entered Materials 18546 | -8/Materials | Evolved 2 slots: Utility x2 18547 | -8/Materials | Loaded intel: 46 non-interactive machine locations 20132 | -8/Materials | Build established: Scavenger-Mutant 20211 | -8/Materials | Discovered new exit (range 5) 20224 | -8/Materials | Identified exit to Factory 21698 | -8/Materials | Discovered exit to Factory (range 5) 21813 | -8/Materials | Garrison activated, responded to threat 24587 | -8/Materials | Identified exit to Garrison 27653 | -8/Materials | Entered Garrison 27828 | -8/Garrison | Core integrity fell below 50% 27909 | -8/Garrison | Lost 4 parts (1p1n2u) 27920 | -8/Garrison | Triggered checkpoint 28012 | -8/Garrison | Triggered checkpoint 28120 | -8/Garrison | Discovered exit to Factory (range 13) 28339 | -8/Garrison | Discovered exit to Factory (range 15) 28535 | -8/Garrison | Discovered exit to Factory (range 9) 28571 | -8/Garrison | Installed Relay Interface Framework 28710 | -8/Garrison | Triggered checkpoint 28861 | -8/Garrison | Garrison Relay disabled 28984 | -8/Garrison | Triggered checkpoint 29082 | -8/Garrison | Triggered checkpoint 29123 | -8/Garrison | Lost 3 parts (1n2u) 29146 | -8/Garrison | Garrison Relay disabled 29464 | -8/Garrison | Triggered checkpoint 29508 | -8/Garrison | Lost 3 parts (1p1n1w) 29521 | -8/Garrison | Garrison Relay disabled 29668 | -8/Garrison | Triggered checkpoint 29779 | -8/Garrison | Garrison Relay disabled 29796 | -8/Garrison | Triggered checkpoint 29812 | -8/Garrison | Build established: Bothacker-Mutant 30028 | -8/Garrison | Triggered checkpoint 30160 | -8/Garrison | Build established: Scavenger-Mutant 31263 | -8/Garrison | Identified Exp. Core Analyzer 31426 | -8/Garrison | Entered Factory 31426 | -7/Factory | Accompanied by 1 ally 31426 | -7/Factory | Evolved 2 slots: Utility x2 31529 | -7/Factory | Repaired Huge Storage Unit? 32276 | -7/Factory | Sucked down chute 32276 | -7/Factory | Entered Waste 32284 | -7/Waste | Found Prototype Launcher 32291 | -7/Waste | EMP discharged 32298 | -7/Waste | Spotted C-40 Crusher 32313 | -7/Waste | Spotted C-40 Crusher 32313 | -7/Waste | Spotted C-40 Crusher 32346 | -7/Waste | Spotted C-40 Crusher 32364 | -7/Waste | Spotted C-40 Crusher 32370 | -7/Waste | Spotted C-40 Crusher 32391 | -7/Waste | EMP discharged 32391 | -7/Waste | System corruption reached 10% 32412 | -7/Waste | Discovered new exit (range 16) 32433 | -7/Waste | Identified exit to Factory 32434 | -7/Waste | Entered Factory 32555 | -7/Factory | Lost 3 parts (1n1u1w) 32652 | -7/Factory | Identified Scatter Rocket Array 33044 | -7/Factory | Identified exit to Lower Caves 33163 | -7/Factory | Repaired Broken System Purifier 33261 | -7/Factory | Lost 3 parts (2n1u) 33370 | -7/Factory | Build established: Scavenger-Skirmisher 33562 | -7/Factory | Garrison activated, responded to threat 34221 | -7/Factory | Build established: Scavenger-Mutant 34288 | -7/Factory | Core integrity fell below 50% 34562 | -7/Factory | Repaired Broken System Purifier? 34871 | -7/Factory | Entered Lower Caves 35749 | -7/Lower Caves | Discovered new exit (range 6) 35835 | -7/Lower Caves | Identified exit to Lower Caves 36146 | -7/Lower Caves | Found Alien Artifact 36146 | -7/Lower Caves | Identified Core Expander 36146 | -7/Lower Caves | Installed Core Expander, added new Utility slot 36767 | -7/Lower Caves | Entered another Lower Caves area 36769 | -7/Lower Caves | Attracted the attention of an 0b10 checkpoint 37035 | -7/Lower Caves | Build established: Mutant 37269 | -7/Lower Caves | Learned 4 Factory zone layouts 38318 | -7/Lower Caves | Learned Factory security intel 38460 | -7/Lower Caves | Discovered new exit (range 13) 38577 | -7/Lower Caves | Identified exit to Data Miner 39216 | -7/Lower Caves | Build established: Scavenger-Mutant 39689 | -7/Lower Caves | Entered Data Miner 39689 | -7/Data Miner | Discovered new exit (range 6) 39720 | -7/Data Miner | Met Data Miner 39750 | -7/Data Miner | Learned location of Section 7 (-2) 39750 | -7/Data Miner | Acquired the access code to Warlord's prototype stash 39774 | -7/Data Miner | Received God Mode back door access code from Data Miner 40030 | -7/Data Miner | Destroyed Data Miner 40032 | -7/Data Miner | Found Prototype Hackware 40033 | -7/Data Miner | Interfaced with the Data Conduit 40037 | -7/Data Miner | Found Prototype Hackware 40168 | -7/Data Miner | Lost 5 parts (1p1n1u2w) 41157 | -7/Data Miner | Identified exit to Proximity Caves 41160 | -7/Data Miner | Entered Proximity Caves 41305 | -6/Proximity Caves | Core integrity fell below 20% 43870 | -6/Proximity Caves | Discovered new exit (range 15) 44091 | -6/Proximity Caves | System corruption reached 30% 44095 | -6/Proximity Caves | Attracted the attention of an 0b10 outpost 44095 | -6/Proximity Caves | Identified exit to Factory 44097 | -6/Proximity Caves | Entered Factory 44097 | -6/Factory | Evolved 2 slots: Power x1, Propulsion x1 44098 | -6/Factory | Identified exit to Extension 44098 | -6/Factory | Identified exit to Lower Caves 44100 | -6/Factory | Loaded intel: 253 machine locations 44884 | -6/Factory | Fabricated Combat Drone Bay (x1) 44956 | -6/Factory | Fabricated Combat Drone Bay (x1) 44996 | -6/Factory | Repaired Broken System Purifier? 45088 | -6/Factory | Repaired Antimatter Reactor 45178 | -6/Factory | Fabricated Combat Drone Bay (x1) 45299 | -6/Factory | Entered Lower Caves 45299 | -6/Lower Caves | Accompanied by 1 ally 45534 | -6/Lower Caves | Acquired the password to a Derelict Tinkerer's latest research 45555 | -6/Lower Caves | Found Prototype Special Weapon 45642 | -6/Lower Caves | Caught by Unaware searching for contraband prototypes 45664 | -6/Lower Caves | Discovered new exit (range 114) 45666 | -6/Lower Caves | Caught by Unaware searching for contraband prototypes 46174 | -6/Lower Caves | Learned Factory garrison access intel 46281 | -6/Lower Caves | Encountered a Warlord checkpoint 46292 | -6/Lower Caves | Learned Factory terminal intel 47469 | -6/Lower Caves | Identified Molecular Deconstructor 47664 | -6/Lower Caves | Identified exit to Lower Caves 47666 | -6/Lower Caves | Entered another Lower Caves area 47666 | -6/Lower Caves | Accompanied by 2 allies 47686 | -6/Lower Caves | Discovered new exit (range 30) 47825 | -6/Lower Caves | Encountered a Warlord checkpoint 48082 | -6/Lower Caves | Learned Factory garrison access intel 48153 | -6/Lower Caves | Discovered new exit (range 101) 50142 | -6/Lower Caves | Identified exit to Zion 50143 | -6/Lower Caves | Entered Zion 50143 | -6/Zion | Accompanied by 2 allies 50265 | -6/Zion | Discovered new exit (range 23) 50582 | -6/Zion | RIF detected upon attempting to enter Zion 50582 | -6/Zion | Attacked by Zionites 50583 | -6/Zion | Spotted Y0-7TC(B) 50583 | -6/Zion | Spotted IQ-VIK(B) 50614 | -6/Zion | Allies destroyed IQ-VIK(B) 50625 | -6/Zion | Allies destroyed Y0-7TC(B) 50987 | -6/Zion | Learned Factory terminal intel 51012 | -6/Zion | Allies destroyed Imprinter 51042 | -6/Zion | Extracted access codes from Imprinter's data core 53860 | -6/Zion | Opened final containment barrier to the Deep Caves 53889 | -6/Zion | Discovered new exit (range 5) 53892 | -6/Zion | Saw the warning signs outside the Deep Caves entrance 53894 | -6/Zion | Identified exit to Deep Caves 62051 | -6/Zion | Entered Deep Caves 62051 | -6/Deep Caves | Accompanied by 1 ally 62432 | -6/Deep Caves | Z-Facility disabled 62547 | -6/Deep Caves | Found Prototype Protection 62547 | -6/Deep Caves | Identified Zio. Weapon Casing 62660 | -6/Deep Caves | Found Prototype Protection 62660 | -6/Deep Caves | Identified Zio. Heavy Carapace 63131 | -6/Deep Caves | Found Zio. Weapon Casing 63530 | -6/Deep Caves | Found Zio. Weapon Casing 63787 | -6/Deep Caves | Spotted as-55920 63830 | -6/Deep Caves | Destroyed as-55920 64417 | -6/Deep Caves | Triggered Deep Caves wall 64428 | -6/Deep Caves | Spotted AS-54665 64430 | -6/Deep Caves | Spotted AS-29928 64489 | -6/Deep Caves | Destroyed AS-54665 64515 | -6/Deep Caves | Destroyed AS-29928 65674 | -6/Deep Caves | Spotted as-34177 65694 | -6/Deep Caves | Core integrity fell below 50% 65696 | -6/Deep Caves | Destroyed as-34177 65856 | -6/Deep Caves | Discovered new exit (range 57) 66881 | -6/Deep Caves | Exposed GOLEM chamber 66885 | -6/Deep Caves | Found GOLEM Unit 66980 | -6/Deep Caves | Found GOLEM Unit 66992 | -6/Deep Caves | Found GOLEM Unit 67000 | -6/Deep Caves | Found GOLEM Unit 67012 | -6/Deep Caves | Found GOLEM Unit 67546 | -6/Deep Caves | Found Mobile Assembly Unit 68105 | -6/Deep Caves | Build established: Mutant 68137 | -6/Deep Caves | Found Supersonic Drone Bay 68306 | -6/Deep Caves | Found Surveybot 24 Chip 68309 | -6/Deep Caves | Found Surveybot 24 Scanner 69812 | -6/Deep Caves | Found GOLEM Unit 70061 | -6/Deep Caves | Identified exit to Proximity Caves 70065 | -6/Deep Caves | Entered Proximity Caves 70065 | -5/Proximity Caves | Accompanied by 1 ally 70422 | -5/Proximity Caves | Attracted the attention of an 0b10 base 70727 | -5/Proximity Caves | Allies destroyed B-75 Beast 71025 | -5/Proximity Caves | Received a Behemoth hack from an annoying Tinkerer 71209 | -5/Proximity Caves | Entered a huge 0b10 base via the front door 71812 | -5/Proximity Caves | Discovered new exit (range 35) 73382 | -5/Proximity Caves | Build established: Commander-Golem 74083 | -5/Proximity Caves | Identified exit to Factory 74110 | -5/Proximity Caves | Entered Factory 74110 | -5/Factory | Accompanied by 11 allies 74110 | -5/Factory | Evolved 2 slots: Utility x1, Weapon x1 74111 | -5/Factory | Identified exit to Upper Caves 74112 | -5/Factory | Loaded intel: 257 machine locations 74113 | -5/Factory | Loaded intel: 26 terminal locations 74114 | -5/Factory | Loaded intel: 4 garrison access locations 74237 | -5/Factory | Repaired System Purifier 74719 | -5/Factory | Identified Deep Network Scanner 74719 | -5/Factory | Identified Quantum Router 74766 | -5/Factory | Discovered new exit (range 2) 74768 | -5/Factory | Identified exit to Factory 74897 | -5/Factory | Build established: Commander-Mutant 75493 | -5/Factory | Intercept squad dispatched 75499 | -5/Factory | Spotted Tracker 75516 | -5/Factory | Destroyed Tracker 75538 | -5/Factory | Spotted Combat Programmer 75546 | -5/Factory | Destroyed Combat Programmer 75556 | -5/Factory | Found Exp. Targeting Computer 75619 | -5/Factory | Build established: Scavenger-Mutant 75763 | -5/Factory | Entered Upper Caves 76444 | -5/Upper Caves | Build established: Golem 77553 | -5/Upper Caves | Discovered new exit (range 82) 77600 | -5/Upper Caves | Build established: Skirmisher 77610 | -5/Upper Caves | Allies destroyed B-75 Beast 77676 | -5/Upper Caves | Found GOLEM Unit 77939 | -5/Upper Caves | Build established: Golem 78779 | -5/Upper Caves | Learned location of 1 exit from Factory 78817 | -5/Upper Caves | Learned Factory emergency access door positions 78843 | -5/Upper Caves | Build established: Scavenger-Mutant 79124 | -5/Upper Caves | Identified exit to Upper Caves 79127 | -5/Upper Caves | Entered another Upper Caves area 79128 | -5/Upper Caves | Encountered a Warlord checkpoint 79237 | -5/Upper Caves | Discovered exit to Factory (range 68) 79335 | -5/Upper Caves | Allies destroyed B-75 Beast 79401 | -5/Upper Caves | Discovered new exit (range 83) 79593 | -5/Upper Caves | Build established: Mutant 79722 | -5/Upper Caves | Learned 4 Factory zone layouts 79855 | -5/Upper Caves | Learned Factory emergency access door positions 80259 | -5/Upper Caves | Build established: Hauler-Mutant 80649 | -5/Upper Caves | Build established: Hauler-Golem 81532 | -5/Upper Caves | Identified exit to Zhirov 81555 | -5/Upper Caves | Entered Zhirov 81555 | -5/Zhirov | Accompanied by 2 allies 81555 | -5/Zhirov | Discovered new exit (range 3) 81669 | -5/Zhirov | Met Zhirov 81771 | -5/Zhirov | Zhirov requested help retrieving the SGEMP Prototype 81813 | -5/Zhirov | Found Alien Artifact 81813 | -5/Zhirov | Identified Integrated Dissipator 81813 | -5/Zhirov | Installed Integrated Dissipator, increased core heat dissipation (+20) 82008 | -5/Zhirov | Found Alien Artifact 82168 | -5/Zhirov | Build established: Hauler-Mutant 82258 | -5/Zhirov | Identified exit to Proximity Caves 82309 | -5/Zhirov | Cloak Generator disabled 82309 | -5/Zhirov | Attacked by Zhirov 82317 | -5/Zhirov | Entered Proximity Caves 82317 | -4/Proximity Caves | Accompanied by 2 allies 83287 | -4/Proximity Caves | Attracted the attention of an 0b10 outpost 83405 | -4/Proximity Caves | Learned 4 Research zone layouts 83573 | -4/Proximity Caves | Build established: Hauler-Skirmisher 83606 | -4/Proximity Caves | Discovered exit to Factory (range 62) 84550 | -4/Proximity Caves | Build established: Hauler-Mutant 85468 | -4/Proximity Caves | Entered Factory 85468 | -4/Factory | Accompanied by 4 allies 85468 | -4/Factory | Evolved 2 slots: Utility x2 85469 | -4/Factory | Identified exit to Upper Caves 85470 | -4/Factory | Identified exit to Research 85473 | -4/Factory | Loaded intel: 273 machine locations 85474 | -4/Factory | Loaded intel: 25 terminal locations 85475 | -4/Factory | Loaded intel: 4 garrison access locations 85516 | -4/Factory | Discovered exit to Research (range 33) 85627 | -4/Factory | Build established: Hauler-Golem 86044 | -4/Factory | Garrison activated, responded to threat 86380 | -4/Factory | Fabricated Assault Drone Bay (x1) 86461 | -4/Factory | Build established: Hauler-Tank 86476 | -4/Factory | Fabricated Assault Drone Bay (x1) 86591 | -4/Factory | Entered Upper Caves 86898 | -4/Upper Caves | Build established: Hauler-Mutant 87271 | -4/Upper Caves | Encountered a Warlord checkpoint 87399 | -4/Upper Caves | Build established: Hauler-Skirmisher 87476 | -4/Upper Caves | Learned Research emergency access door positions 87706 | -4/Upper Caves | Attracted the attention of an 0b10 checkpoint 88032 | -4/Upper Caves | Build established: Hauler-Golem 88147 | -4/Upper Caves | Discovered new exit (range 14) 88176 | -4/Upper Caves | Identified exit to Upper Caves 88269 | -4/Upper Caves | Learned Research non-interactive machine intel 89032 | -4/Upper Caves | Attracted the attention of an 0b10 outpost 89782 | -4/Upper Caves | Entered another Upper Caves area 89782 | -4/Upper Caves | Accompanied by 2 allies 89803 | -4/Upper Caves | Discovered exit to Research (range 13) 90224 | -4/Upper Caves | Build established: Hauler-Tank 90915 | -4/Upper Caves | Build established: Hauler-Golem 91358 | -4/Upper Caves | Discovered new exit (range 74) 91528 | -4/Upper Caves | Build established: Hauler-Skirmisher 91846 | -4/Upper Caves | Build established: Hauler-Mutant 91982 | -4/Upper Caves | Learned Research terminal intel 92008 | -4/Upper Caves | Learned Research garrison access intel 92300 | -4/Upper Caves | Identified exit to Warlord 92647 | -4/Upper Caves | Build established: Hauler-Golem 93334 | -4/Upper Caves | Build established: Hauler-Mutant 93389 | -4/Upper Caves | Entered Warlord 93389 | -4/Warlord | Accompanied by 2 allies 93419 | -4/Warlord | Discovered new exit (range 37) 93752 | -4/Warlord | Identified exit to Proximity Caves 94106 | -4/Warlord | Build established: Hauler-Golem 94689 | -4/Warlord | Warlord's base attacked by MAIN.C 95039 | -4/Warlord | Warlord forces counterattacked 95364 | -4/Warlord | Warlord base infiltrated, sounded retreat 95506 | -4/Warlord | Spotted Executioner 96295 | -4/Warlord | Build established: Hauler-Tank 96641 | -4/Warlord | Spotted Executioner 96649 | -4/Warlord | Destroyed Executioner 96677 | -4/Warlord | Spotted Executioner 96696 | -4/Warlord | Destroyed Executioner 97045 | -4/Warlord | Build established: Hauler-Golem 97550 | -4/Warlord | Spotted Executioner 97571 | -4/Warlord | Spotted Striker 97585 | -4/Warlord | Core integrity fell below 50% 97598 | -4/Warlord | Core integrity fell below 20% 97600 | -4/Warlord | Released all parts (9) 97601 | -4/Warlord | Identified Transdimensional Reconstructor 97601 | -4/Warlord | Warped through subspace 97601 | -4/Warlord | Spotted Striker 97601 | -4/Warlord | Destroyed by G-67 Veteran with Plasma Rifle Last Messages --------------- 97597_ Asb. Alloy Leg destroyed. 97597_ G-67 Veteran overheating. 97598_ System corrupted: Component data lost. 97598_ G-67 Veteran heat damages core (-21). 97598_ Acquired 32 matter. 97599_ Asb. Alloy Leg destroyed. 97599_ Zio. Light DM Reactor destroyed. 97599_ Penetrated by Slug. 97600_ Released Asb. Focal Cannon. 97600_ Released Asb. Nanovents. 97600_ Released Mak. Hammer. 97600_ Released Huge Storage Unit. 97600_ Released Asb. Biocell Array. 97600_ Released GOLEM Unit. 97600_ Released Asb. Combat Suite. 97600_ Released Adv. Signal Interpreter. 97600_ P-80 Master resets Striker, system corruption cleaned. 97601_ Acquired Alien Artifact. 97601_ Identified Transdimensional Reconstructor. 97601_ Warped through subspace. Map ----- +----------------------------------------------------+ | ??##?# "!"???## ########+#???????????#????? | | #?#??# " "#???# ## #???#??????##????? | | #??#?# #???# ## ##### #?#???#?#??#???#?? | | ?###?? #??## ## #####+####???##???#?#??? | | ?????#?# #????# + ## #??????#?#????? | | ?#??#??#+###### # ## """ #?#??#??#????## | | ?????#?# ######+#### ## """ #??#??#???#?### | | ???#???# + """ ##?????#???##=! | | ??#??#?# ## ##???#???### %= | | ??#??### ## """ ##?##????##!%*[ | | #?#????# ## """ #?#?#?#???#[*=! | | ?###?######## # """ #?#??????##!%*! | | ?????## ^ + #?#########%!=[ | | #?#?## """ """ g# #### *[[[%%% | | ##???## """ """ # #?#######![#=%% | | ##?### """ """ ##########?##?#?# #!##= | | #??#### """ """ pKg#??###?#??#?#??##!###= | | ####### """ " "p ###?##??####???# ####= | | + #?###?##????### ##### | | + ######?#####?# #?##### | | + ########### ######?"##### ####?#?# | | ### ### # #### ######?""#### #?##?#### | | ######## ## """ #### #?####""##? #??###?### | | ###""" # ## """ #### ####?#""#?####??###### | | #?#" + ## """ #### ######""###?####????## | | #?#X # ## """ #### @ #######""#####?######?? | | ###" # ## """ == ; "" "########## | | ######## ## !%! ! "" """"""""""" | | #?###### ####;# % = " = """"""""" | | ###?### ]= ] ! !% | | ######## == g= s == ! | | ######## ! !%* | | #########+### ## !g[g! ! ! | | #?# # #=g! % # "" """"""""" | | #?# """"" ; #=*[] # ""[ """"""""" | | ### """"" # # =%! "" "######### | | ## """"" # ####!! ###""#######???#### | | ## # #### #######""##??#######??# | | #####+#+####/## ### #######""######?####### | | ^ ^ #### #######""####?###?##?## | | ^ #### i ##?###?""#####?######?# | | """ #### ####?#?"?#####?######## | | """ #### #?###?#########??###?## | | """ ########+### ###### ######?####?##?##?#?### | | # ## ###### ##?####?##?##?#####?##? | | + ## ###### ##??####?##?#?#????#??# | | ##### ## ######## ######?#?###??#??####?# | | ##### ## ###?#### ##?#####??????##?###?## | | ##### ##+######## ###?##??#???##???### # | | #### # # ##?#######??#??#?## | +----------------------------------------------------+ Best States ------------- Heat Dissipation 108 Energy Generation 45 Energy Capacity 2200 Matter Stores 300 Matter Capacity 300 Sight Range 16 Robot Scan Range 20 Terrain Scan Density 10 Jamming Range 16 Additional Mass Support 20 Armor Coverage 1800 Resistance: KI 30 Resistance: TH 15 Resistance: EX 15 Resistance: EM 15 Resistance: I 15 Resistance: S 15 Resistance: P 15 Core Shielding 20 Utility Shielding 66 Weapon Shielding 100 Weapon Cycling 20 Melee Speed Boost 20 Phase Shifting 8 Evasion (%) 48 Targeting Accuracy 8 Melee Accuracy 6 Launcher Accuracy 30 Core Analysis 8 Recoil Reduction 3 Energy Filtering 30 Salvage Targeting 1 Offensive Hacking 26 Defensive Hacking 14 Relay Coupler Types 1 Relay Coupler Value 23 Authchip Count 3 Trap Extractor Capacity 6 Item Schematics ----------------- Flight Unit | -9/Materials | Hacked Signal Interpreter | -9/Materials | Hacked Grenade Launcher | -9/Materials | Extracted Imp. Light Cannon | -9/Materials | Extracted Cmb. Antigrav System | -8/Materials | Scanalyzed Sensor Array | -7/Factory | Hacked Centrium Wheel | -7/Factory | Downloaded System Purifier | -7/Factory | Scanalyzed Combat Drone Bay | -7/Data Miner | Free Lgt. Regenerative Plating | -7/Data Miner | Free Cld. Aerolev Unit | -7/Data Miner | Free Thermal Defense Suite | -7/Data Miner | Free Cld. Plasma Cannon | -7/Data Miner | Free Cmb. Gravmag System | -7/Data Miner | Free Adv. Salvage Targeting Computer | -7/Data Miner | Free Mass Driver | -7/Data Miner | Free Hvy. Flak Cannon | -7/Data Miner | Free Nuclear Pulse Array | -7/Data Miner | Free Quantum Capacitor | -7/Data Miner | Free Adv. Trap Scanner | -7/Data Miner | Free Hvy. Disruptor Cannon | -6/Factory | Hacked Assault Drone Bay | -5/Zhirov | Free Exp. Heat Sink | -5/Zhirov | Free Exp. Optical Array | -5/Zhirov | Free Imp. Arc Thrower | -5/Zhirov | Free Exp. Utility Shielding | -4/Factory | Hacked Robot Schematics ------------------ G-47 Trooper | -7/Data Miner | Free M-28 Smith | -7/Data Miner | Free L-41 Fighter | -7/Data Miner | Free A-15 Conveyor | -7/Data Miner | Free S-27 Virus | -7/Data Miner | Free Fabricated ------------ Combat Drone Bay | x1 | -6/Factory | Authchip Combat Drone Bay | x1 | -6/Factory | Authchip Combat Drone Bay | x1 | -6/Factory | Authchip Assault Drone Bay | x1 | -4/Factory | Authchip Assault Drone Bay | x1 | -4/Factory | Authchip Alien Tech Used ----------------- Core Expander Integrated Dissipator Transdimensional Reconstructor Achievements -------------- Exposed Challenges ------------ None Game ------ Seed LargeCooledArmor Manual? 0 Play Time 13:11:43 Cumulative 512.2 hours Start 2022.06.24 @ 13:13:21 End 2022.07.03 @ 18:04:25 Sessions 32 Manual Loads 0 Difficulty Rogue Special Mode None Game No. 42 Rogue 37 Adventurer 5 Explorer 0 Win Type - Total 21 Types 6/4/4/0/3/1/2/0/1 Lore% 82 Gallery% 91 Achievement% 81 Wizard Run 0 Options --------- ASCII 0 Keyboard 1 Movement Arrows Keybinds 0 Fullscreen 2 Font 18/SmallcapsGlow Map View 76x50 Tactical HUD 1 Map Filters NONE Filters NONE Steam 1 RUN: 560be4a8-6f8f-484c-8b9a-3057544bf349